Workbook

Sheet NBR Frontpage
AD2: 518-2009
B4: 118/2019
B5: Report
A17: Bolting trial
A20: Aim
A21: Investigate varietal differences regarding bolting
A26: Rapport med försöksdata och resultattabeller
A27: Report with trial data and tables of result
A32: Denna publikation innehåller försöksdata och resultat i tabeller och figurer. Det kan förekomma
A33: mindre fel och inkonsekvenser i språk och layout. Alla sidor är inte alltid utskriftsvänliga.
A34: Vid frågor eller kommentarer är du alltid välkommen att kontakta författaren nedan.
A36: The appendix comprises documentations from the research project. Minor mistakes in language
A37: and lack of adjustments in layout may occur. Questions may be addressed to the project manager.
A41: =VLOOKUP([12]Input!C7,[12]Listor!$A$21:$J$31,2,FALSE) -> Joakim Ekelöf
A42: =VLOOKUP([12]Input!C7,[12]Listor!$A$21:$J$31,5,FALSE) -> JE@nbrf.nu
A43: =VLOOKUP([12]Input!C7,[12]Listor!$A$21:$J$31,3,FALSE) -> (+46) 736 28 67 24
A45: NBR Nordic Beet Research Foundation (Fond)
A46: DK: Højbygårdvej 14, DK-4960 Holeby
A47: SE: Borgeby Slottsväg 11, SE-237 91 Bjärred
A48: Phone: +45 54 60 14 40 | B48: http://www.nordicbeet.nu/

Sheet Information

Sheet Plan
A1: 118 Bolting trial
A2: temp1
A3: Syfte/aim:
A4: Undersöka stocklöpningsfrekvensen hos olika sorter
A5: Investigate varietal differences regarding bolting
A7: Entry | B7: Ref | C7: Variety-code | D7: Name | E7: Breeders Reference | F7: Resistance | G7: Owner | H7: Years in test | I7: treatmcode
A8: 1 | B8: R | C8: 21402 | D8: Daphna (Gaucho) | E8: KWS3K393 | F8: RT+NT | G8: KWS SAAT SE | H8: 6 | I8: 21402
A9: 2 | B9: R | C9: 21606 | D9: Fortnox (Force) | E9: HI 1475 | F9: RT+NT | G9: NBR | H9: 6 | I9: 21606
A10: 3 | B10: R | C10: 21539 | D10: Selma KWS | E10: 5K576 | F10: RT+AT | G10: KWS SAAT SE | H10: 5 | I10: 21539
A11: 4 | B11: R | C11: 21403 | D11: Smilla KWS | E11: KWS4K444 | F11: RT | G11: KWS SAAT SE | H11: 6 | I11: 21403
A12: 5 | B12: R | C12: 21533 | D12: Farina KWS | E12: 5K562 | F12: RT | G12: KWS SAAT SE | H12: 5 | I12: 21533
A13: 6 | B13: R | C13: 21201 | D13: Cartoon | E13: HI1203 | F13: RT+AT | G13: MariboHilleshög | H13: 8 | I13: 21201
A14: 7 | B14: R | C14: 21434 | D14: Klimt | E14: ST 12422 | F14: RT | G14: Strube D&S | H14: 6 | I14: 21434
A15: 8 | B15: R | C15: 21606 | D15: Fortnox (Gaucho) | E15: HI 1475 | F15: RT+NT | G15: MariboHilleshög | H15: 4 | I15: 21606
A16: 9 | B16: R | C16: 21323 | D16: Cantona KWS | E16: KWS3K394 | F16: RT+NT | G16: KWS SAAT SE | H16: 7 | I16: 21323
A17: 10 | B17: R | C17: 21508 | D17: Whisky | E17: SV1656 | F17: RT | G17: SESvdH | H17: 5 | I17: 21508
A18: 11 | B18: R | C18: 21644 | D18: Lunella KWS | E18: 6K683 | F18: RT+NT+AT | G18: KWS SAAT SE | H18: 4 | I18: 21644
A19: 12 | B19: R | C19: 21643 | D19: Smart Johanna KWS | E19: 6K674 | F19: RT+NT+HT | G19: KWS SAAT SE | H19: 4 | I19: 21643
A20: 13 | B20: O | C20: 21701 | D20: Fenja KWS | E20: 6K680 | F20: RT+NT | G20: KWS SAAT SE | H20: 3 | I20: 21701
A21: 14 | B21: O | C21: 21702 | D21: Evalotta KWS | E21: 7K728 | F21: RT | G21: KWS SAAT SE | H21: 3 | I21: 21702
A22: 15 | B22: O | C22: 21745 | D22: Snooze | E22: HI1524 | F22: RT+AT | G22: MariboHilleshög | H22: 3 | I22: 21745
A23: 16 | B23: O | C23: 21717 | D23: Trixx | E23: MA4095 | F23: RT+NT | G23: MariboHilleshög | H23: 3 | I23: 21717
A24: 17 | B24: O | C24: 21712 | D24: Smart Renja KWS | E24: 7K780 | F24: RT+NT+HT | G24: KWS SAAT SE | H24: 3 | I24: 21712
A25: 18 | B25: O | C25: 21726 | D25: SV2003 | E25: SV2003 | F25: RT+HT | G25: SESvdH | H25: 3 | I25: 21726
A26: 19 | C26: 21628 | D26: Moala | E26: SV1771 | F26: RT | G26: SESvdH | H26: 4 | I26: 21628
A27: 20 | C27: 21727 | D27: Bauer | E27: ST12705 | F27: RT | G27: Strube D&S | H27: 3 | I27: 21727
A28: 21 | C28: 21728 | D28: Ingvar | E28: ST12728 | F28: RT | G28: Strube D&S | H28: 3 | I28: 21728
A29: 22 | C29: 21703 | D29: Klarissa KWS | E29: 7K731 | F29: RT+AT | G29: KWS SAAT SE | H29: 3 | I29: 21703
A30: 23 | C30: 21708 | D30: Katjana KWS | E30: 7K758 | F30: RT+NT | G30: KWS SAAT SE | H30: 3 | I30: 21708
A31: 24 | C31: 21713 | D31: Smart Breanna KWS | E31: 7K781 | F31: RT+HT | G31: KWS SAAT SE | H31: 3 | I31: 21713
A32: 25 | C32: 21814 | D32: 7K783 | E32: 7K783 | F32: RT+HT | G32: KWS SAAT SE | H32: 2 | I32: 21814
A33: 26 | C33: 20901 | D33: 8K804 | E33: 8K804 | F33: RT+HT | G33: KWS SAAT SE | H33: 1 | I33: 20901
A34: 27 | C34: 20902 | D34: 8K814 | E34: 8K814 | F34: RT | G34: KWS SAAT SE | H34: 1 | I34: 20902
A35: 28 | C35: 21803 | D35: 8K815 | E35: 8K815 | F35: RT+NT+AT | G35: KWS SAAT SE | H35: 2 | I35: 21803
A36: 29 | C36: 21802 | D36: 8K819 | E36: 8K819 | F36: RT+NT | G36: KWS SAAT SE | H36: 2 | I36: 21802
A37: 30 | C37: 20903 | D37: 8K825 | E37: 8K825 | F37: RT | G37: KWS SAAT SE | H37: 1 | I37: 20903
A38: 31 | C38: 21805 | D38: 8K832 | E38: 8K832 | F38: RT+NT | G38: KWS SAAT SE | H38: 2 | I38: 21805
A39: 32 | C39: 21808 | D39: 8K837 | E39: 8K837 | F39: RT | G39: KWS SAAT SE | H39: 2 | I39: 21808
A40: 33 | C40: 21815 | D40: 8K848 | E40: 8K848 | F40: RT+HT | G40: KWS SAAT SE | H40: 2 | I40: 21815
A41: 34 | C41: 20904 | D41: 9K913 | E41: 9K913 | F41: RT+NT | G41: KWS SAAT SE | H41: 1 | I41: 20904
A42: 35 | C42: 20905 | D42: 9K914 | E42: 9K914 | F42: RT | G42: KWS SAAT SE | H42: 1 | I42: 20905
A43: 36 | C43: 20906 | D43: 9K915 | E43: 9K915 | F43: RT+NT | G43: KWS SAAT SE | H43: 1 | I43: 20906
A44: 37 | C44: 20907 | D44: 9K926 | E44: 9K926 | F44: RT+NT+HT | G44: KWS SAAT SE | H44: 1 | I44: 20907
A45: 38 | C45: 20908 | D45: 9K928 | E45: 9K928 | F45: RT+HT | G45: KWS SAAT SE | H45: 1 | I45: 20908
A46: 39 | C46: 20909 | D46: 9K933 | E46: 9K933 | F46: RT+NT | G46: KWS SAAT SE | H46: 1 | I46: 20909
A47: 40 | C47: 20910 | D47: 9K938 | E47: 9K938 | F47: RT | G47: KWS SAAT SE | H47: 1 | I47: 20910
A48: 41 | C48: 20911 | D48: 9K941 | E48: 9K941 | F48: RT | G48: KWS SAAT SE | H48: 1 | I48: 20911
A49: 42 | C49: 20912 | D49: 9K943 | E49: 9K943 | F49: RT | G49: KWS SAAT SE | H49: 1 | I49: 20912
A50: 43 | C50: 20913 | D50: 9K944 | E50: 9K944 | F50: RT | G50: KWS SAAT SE | H50: 1 | I50: 20913
A51: 44 | C51: 20914 | D51: 9K951 | E51: 9K951 | F51: RT+NT | G51: KWS SAAT SE | H51: 1 | I51: 20914
A52: 45 | C52: 20915 | D52: 9K952 | E52: 9K952 | F52: RT+NT | G52: KWS SAAT SE | H52: 1 | I52: 20915
A53: 46 | C53: 20916 | D53: 9K973 | E53: 9K973 | F53: RT | G53: KWS SAAT SE | H53: 1 | I53: 20916
A54: 47 | C54: 21817 | D54: MH2006 | E54: MH2006 | F54: RT | G54: MariboHilleshög | H54: 2 | I54: 21817
A55: 48 | C55: 21819 | D55: MH2018 | E55: MH2018 | F55: RT | G55: MariboHilleshög | H55: 2 | I55: 21819
A56: 49 | C56: 21823 | D56: MH4013 | E56: MH4013 | F56: RT+NT | G56: MariboHilleshög | H56: 2 | I56: 21823
A57: 50 | C57: 20932 | D57: ST12839 | E57: ST12839 | F57: RT | G57: Strube D&S | H57: 1 | I57: 20932
A58: 51 | C58: 21833 | D58: ST12854 | E58: ST12854 | F58: RT | G58: Strube D&S | H58: 2 | I58: 21833
A59: 52 | C59: 21837 | D59: ST12860 | E59: ST12860 | F59: RT | G59: Strube D&S | H59: 2 | I59: 21837
A60: 53 | C60: 20933 | D60: ST12948 | E60: ST12948 | F60: RT | G60: Strube D&S | H60: 1 | I60: 20933
A61: 54 | C61: 20934 | D61: ST12951 | E61: ST12951 | F61: RT | G61: Strube D&S | H61: 1 | I61: 20934
A62: 55 | C62: 20935 | D62: ST12952 | E62: ST12952 | F62: RT | G62: Strube D&S | H62: 1 | I62: 20935
A63: 56 | C63: 20936 | D63: ST12981 | E63: ST12981 | F63: RT | G63: Strube D&S | H63: 1 | I63: 20936
A64: 57 | C64: 21841 | D64: ST15827 | E64: ST15827 | F64: RT+NT | G64: Strube D&S | H64: 2 | I64: 21841
A65: 58 | C65: 21842 | D65: ST15836 | E65: ST15836 | F65: RT+NT | G65: Strube D&S | H65: 2 | I65: 21842
A66: 59 | C66: 20937 | D66: ST15955 | E66: ST15955 | F66: RT+NT | G66: Strube D&S | H66: 1 | I66: 20937
A67: 60 | C67: 21828 | D67: SV2115 | E67: SV2115 | F67: RT | G67: SESvdH | H67: 2 | I67: 21828
A68: 61 | C68: 20924 | D68: SV2234 | E68: SV2234 | F68: RT+HT | G68: SESvdH | H68: 1 | I68: 20924
A69: 62 | C69: 20925 | D69: SV2251 | E69: SV2251 | F69: RT | G69: SESvdH | H69: 1 | I69: 20925
A70: 63 | C70: 20926 | D70: SV2253 | E70: SV2253 | F70: RT+NT | G70: SESvdH | H70: 1 | I70: 20926
A71: 64 | C71: 20927 | D71: SV2255 | E71: SV2255 | F71: RT+NT | G71: SESvdH | H71: 1 | I71: 20927
A72: 65 | C72: 20928 | D72: SV2257 | E72: SV2257 | F72: RT+NT | G72: SESvdH | H72: 1 | I72: 20928
A73: 66 | C73: 20929 | D73: SV2259 | E73: SV2259 | F73: RT+NT | G73: SESvdH | H73: 1 | I73: 20929
A74: 67 | C74: 20930 | D74: SV2261 | E74: SV2261 | F74: RT+NT | G74: SESvdH | H74: 1 | I74: 20930
A75: 68 | C75: 20931 | D75: SV2262 | E75: SV2262 | F75: RT+NT | G75: SESvdH | H75: 1 | I75: 20931

Sheet Listor (hidden)
A1: Sortering av flikarna
A6: Treatments
A7: Soil samples
A8: Plan
A9: Information
A10: NBR Frontpage
A11: db
A14: Slutet

Sheet Random Plan (hidden)
A1: 118 Bolting trial
B17: 118 Borgeby, Leif Bengtsson, tel: 0
A18: Block1 | B18: 6 | C18: 21 | D18: 14 | E18: 30 | F18: 11 | G18: 9 | H18: 28 | I18: 22 | J18: 7 | K18: 32 | L18: 26 | M18: 19 | N18: 3 | O18: 23 | P18: 12 | Q18: 10 | R18: 29 | S18: 8 | T18: 31 | U18: 25 | V18: 16 | W18: 4 | X18: 17 | Y18: 1 | Z18: 5 | AA18: 18 | AB18: 15 | AC18: 27 | AD18: 24 | AE18: 13 | AF18: 20 | AG18: 2
B19: 1 | C19: 2 | D19: 3 | E19: 4 | F19: 5 | G19: 6 | H19: 7 | I19: 8 | J19: 9 | K19: 10 | L19: 11 | M19: 12 | N19: 13 | O19: 14 | P19: 15 | Q19: 16 | R19: 17 | S19: 18 | T19: 19 | U19: 20 | V19: 21 | W19: 22 | X19: 23 | Y19: 24 | Z19: 25 | AA19: 26 | AB19: 27 | AC19: 28 | AD19: 29 | AE19: 30 | AF19: 31 | AG19: 32
B28: 118 Borgeby, Leif Bengtsson, tel: 0
A345: 32

Sheet Plan. (hidden)
A1: 536 Program för ogräsbekämpning
A2: temp2
A3: Formål/Aim:
A4: Framtidens ogräsbekämpning i sockerbetor i Sverige
A5: Future weed strategies in sugar beets in sweden
A7: Entry | B7: Ref | C7: Strategy | D7: Variety
A8: 1 | C8: Untreated (7K780) | D8: 7K780 | I8: Obehandlad (7K780)
A9: 2 | C9: ALS Early Start (7K780) | D9: 7K780 | I9: ALS Tidig start (7K780)
A10: 3 | C10: ALS Standard treatment (7K780) | D10: 7K780 | I10: ALS normal (7K780)
A11: 4 | C11: Traditional + Centium (7K780) | D11: 7K780 | I11: Standard + Centium (7K780)
A12: 5 | C12: Traditional + Safari (7K780) | D12: 7K780 | I12: Standard + Safari (7K780)
A13: 6 | C13: Traditional from previous trials (7K780) | D13: 7K780 | I13: Tidigare standard, brygga (7K780)
A14: 7 | B14: R | C14: Same as above but with Daphna (Daphna) | D14: Daphna | I14: Som ovan fast i sorten Daphna (Daphna)
A15: 8 | C15: Bas program (weak) (Daphna) | D15: Daphna | I15: Basprogram svag (Daphna)
A16: 9 | C16: Bas program + howing (7K780) | D16: 7K780 | I16: Basprogram + avslutande radrensning (7K780)
A17: 10 | C17: No Betanal Power + howing (7K780) | D17: 7K780 | I17: Utan Betanal Power + radrensning (7K780)
A18: 11 | C18: No Betanal Power + everything else (7K780) | D18: 7K780 | I18: Utan Betanal Power + max kemi (7K780)
A19: 12 | C19: Weak program, Des + Fen (howed) (7K780) | D19: 7K780 | I19: Svagt program med Fen+Des+Radr (7K780)
A20: 13 | C20: Weak program, Only Fen (howed) (7K780) | D20: 7K780 | I20: Svagt program med Fen-Des+Radr (7K780)
A21: 14 | C21: As cheap as possible (7K780) | D21: 7K780 | I21: Så billigt som möjligt (7K780)
AA23: Joakim Ekelöf

Sheet db (hidden)
A1: Order | B1: Sascode | C1: Swedish | D1: Danish | E1: English | F1: Expl | G1: Unit | H1: Decimals and formatting values | I1: Decimals and formatting heading | J1: Column width | K1: Posetive with high value =1 | L1: trans-formation | M1: treatment | N1: errpr_distr | O1: missing_value | P1: multiple_testing_adjustment | R1: Språkkod: | S1: 3
A2: 5 | B2: pi | C2: Nematoder | D2: Nematode | E2: Pi | F2: Beet cyst | G2: eal/g | H2: 1 | I2: 1 | J2: 12 | K2: 0 | L2: identity | M2: treatm | N2: normal
A3: 6 | B3: pf | C3: Nematoder | D3: Nematode | E3: Pf | F3: Beet cyst | G3: eal/g | H3: 1 | I3: 1 | J3: 12 | K3: 0 | L3: identity | M3: treatm | N3: normal
A4: 7 | B4: pfpi | C4: Nematoder | D4: Nematode | E4: Pf/Pi | F4: Beet cyst | G4: eal/g | H4: 1 | I4: 1 | J4: 12 | K4: 0 | L4: identity | M4: treatm | N4: normal | R4: Svenska | S4: 3
A5: 8 | B5: plh20 | C5: Plant nr | D5: Planter | E5: Plant no | F5: 0.2 | G5: 1000/ha | H5: 1 | I5: 1 | J5: 8 | K5: 1 | L5: identity | M5: treatm | N5: normal | R5: Danska | S5: 4
A6: 9 | B6: plh25 | C6: Plant nr | D6: Planter | E6: Plant no | F6: 0.25 | G6: 1000/ha | H6: 1 | I6: 1 | J6: 8 | K6: 1 | L6: identity | M6: treatm | N6: normal | R6: Engelska | S6: 5
A7: 10 | B7: plh50 | C7: Plant nr | D7: Planter | E7: Plant no | F7: 0.5 | G7: 1000/ha | H7: 1 | I7: 1 | J7: 8 | K7: 1 | L7: identity | M7: treatm | N7: normal
A8: 11 | B8: plh75 | C8: Plant nr | D8: Planter | E8: Plant no | F8: 0.75 | G8: 1000/ha | H8: 1 | I8: 1 | J8: 8 | K8: 1 | L8: identity | M8: treatm | N8: normal
A9: 12 | B9: plh100 | C9: Plant nr | D9: Planter | E9: Plant no | F9: 1 | G9: 1000/ha | H9: 1 | I9: 1 | J9: 8 | K9: 1 | L9: identity | M9: treatm | N9: normal | O9: 0
A10: 13 | B10: plhfin | C10: Plant nr | D10: Planter | E10: Plant no | F10: Final | G10: 1000/ha | H10: 1 | I10: 1 | J10: 8 | K10: 1 | L10: identity | M10: treatm | N10: normal | O10: 0
A11: 14 | B11: pln_parc | C11: Plant nr | D11: Planter | E11: Plant no | F11: 1 | G11: nr/plot | H11: 1 | I11: 1 | J11: 8 | K11: 1 | L11: identity | M11: treatm | N11: normal | O11: 0
A12: 15 | B12: topweight_kg | C12: Rotvikt | D12: Rod | E12: Root weight | F12: june | G12: kg/20 beets | H12: 1 | I12: 1 | J12: 10 | K12: 1 | L12: identity | M12: treatm | N12: normal | O12: 0
A13: 16 | B13: rootweight_kg | C13: Blastvikt | D13: foliage | E13: Leaf weight | F13: june | G13: kg/20 beets | H13: 1 | I13: 1 | J13: 10 | K13: 1 | L13: identity | M13: treatm | N13: normal | O13: 0
A14: 17 | B14: totalwgt_kg | C14: Total vikt | D14: Total vikt | E14: Total weight | F14: june | G14: kg/20 beets | H14: 1 | I14: 1 | J14: 10 | K14: 1 | L14: identity | M14: treatm | N14: normal | O14: 0
A15: 18 | B15: weirot | C15: Rot | D15: Rod | E15: Root | G15: t/ha | H15: 1 | I15: 1 | J15: 5 | K15: 1 | L15: identity | M15: treatm | N15: normal | O15: 0
A16: 19 | B16: pol | C16: Socker | D16: Sukker | E16: Sugar | G16: % | H16: 1 | I16: 1 | J16: 7 | K16: 1 | L16: identity | M16: treatm | N16: normal | O16: 0
A17: 20 | B17: sug | C17: Socker | D17: Sukker | E17: Sugar | G17: t/ha | H17: 1 | I17: 1 | J17: 7 | K17: 1 | L17: identity | M17: treatm | N17: normal | O17: 0
A18: 21 | B18: sugrel | C18: Socker | D18: Sukker | E18: Sugar | G18: relative | H18: 1 | I18: 1 | J18: 7 | K18: 1 | L18: identity | M18: treatm | N18: normal | O18: 0
A19: 22 | B19: sugrel2 | C19: Socker | D19: Sukker | E19: Sugar | G19: relative | H19: 1 | I19: 1 | J19: 7 | K19: 1 | L19: identity | M19: treatm | N19: normal | O19: 0
A20: 23 | B20: econse | C20: Ekonomi | D20: Økonomi | E20: Economy | F20: Total income | G20: SEK/ha | H20: 1 | I20: 1 | J20: 12 | K20: 1 | L20: identity | M20: treatm | N20: normal
A21: 24 | B21: diffeconavgse | C21: Ekonomi | D21: Økonomi | E21: Economy | F21: Diff to avg. | G21: SEK/ha | H21: 1 | I21: 1 | J21: 12 | K21: 1 | L21: identity | M21: treatm | N21: normal
A22: 25 | B22: diffecon_nt_se | C22: Ekonomi | D22: Økonomi | E22: Economy | F22: Diff to NT | G22: SEK/ha | H22: 1 | I22: 1 | J22: 12 | K22: 1 | L22: identity | M22: treatm | N22: normal
A23: 26 | B23: econ2se | C23: Ekonomi | D23: Økonomi | E23: Economy | F23: Total income | G23: SEK/ha | H23: 1 | I23: 1 | J23: 12 | K23: 1 | L23: identity | M23: treatm | N23: normal
A24: 27 | B24: diffecon_sus_se | C24: Ekonomi | D24: Økonomi | E24: Economy | F24: Diff to suceptible | G24: SEK/ha | H24: 1 | I24: 1 | J24: 12 | K24: 1 | L24: identity | M24: treatm | N24: normal
A25: 28 | B25: econdk | C25: Ekonomi | D25: Forenklet | E25: Økonomi | F25: Total income | G25: DKK/ha | H25: 1 | I25: 1 | J25: 12 | K25: 1 | L25: identity | M25: treatm | N25: normal
A26: 29 | B26: diffeconavgdk | C26: Ekonomi | D26: Forenklet | E26: Økonomi | F26: Diff to avg. | G26: DKK/ha | H26: 1 | I26: 1 | J26: 12 | K26: 1 | L26: identity | M26: treatm | N26: normal
A27: 30 | B27: diffecon_nt_dk | C27: Ekonomi | D27: Forenklet | E27: Økonomi | F27: Diff to NT | G27: DKK/ha | H27: 1 | I27: 1 | J27: 12 | K27: 1 | L27: identity | M27: treatm | N27: normal
A28: 31 | B28: econ2dk | C28: Ekonomi | D28: Forenklet | E28: Økonomi | F28: Total income | G28: DKK/ha | H28: 1 | I28: 1 | J28: 12 | K28: 1 | L28: identity | M28: treatm | N28: normal
A29: 32 | B29: diffecon_sus_dk | C29: Ekonomi | D29: Forenklet | E29: Økonomi | F29: Diff to suceptible | G29: DKK/ha | H29: 1 | I29: 1 | J29: 12 | K29: 1 | L29: identity | M29: treatm | N29: normal
A30: 33 | B30: dirt | C30: Jord | D30: Vh. jord | E30: Tare | G30: % | H30: 1 | I30: 1 | J30: 7 | K30: 0 | L30: identity | M30: treatm | N30: normal
A31: 34 | B31: renpct | C31: Renhet | D31: Renhed | E31: Cleaness | G31: % | H31: 1 | I31: 1 | J31: 7.5 | K31: 1 | L31: identity | M31: treatm | N31: normal | O31: 0
A32: 35 | B32: rodfure | C32: Rotfåra | D32: Rodfure | E32: Groove | G32: Sc. 1-9 | H32: 1 | I32: 1 | J32: 8 | K32: 1 | L32: identity | M32: treatm | N32: normal | O32: 0
A33: 36 | B33: kalium | C33: K | D33: K | E33: K | F33: pr 100 g sukker | G33: mmol | H33: 1 | I33: 1 | J33: 7.5 | K33: 0 | L33: identity | M33: treatm | N33: normal | O33: 0
A34: 37 | B34: natrium | C34: Na | D34: Na | E34: Na | F34: pr 100 g sukker | G34: mmol | H34: 1 | I34: 1 | J34: 7.5 | K34: 0 | L34: identity | M34: treatm | N34: normal | O34: 0
A35: 38 | B35: kna | C35: K+Na | D35: K+Na | E35: K+Na | F35: pr 100g beet | G35: mmol | H35: 1 | I35: 1 | J35: 7.5 | K35: 0 | L35: identity | M35: treatm | N35: normal | O35: 0
A36: 39 | B36: blaa | C36: Blåtal | D36: Amino-N | E36: Amino-N | F36: pr 100g beet | G36: mg | H36: 1 | I36: 1 | J36: 8 | K36: 0 | L36: identity | M36: treatm | N36: normal | O36: 0
A37: 40 | B37: ivtal | C37: IV-tal | D37: IV-tal | E37: IV-tal | F37: pr 100 g sukker | G37: mmol | H37: 1 | I37: 1 | J37: 8 | K37: 0 | L37: identity | M37: treatm | N37: normal
A38: 41 | B38: aph_scale_5 | C38: Aphanomyces | E38: Aphanomyces | F38: At factory | G38: Sc. 0-5 | H38: 1 | I38: 1 | J38: 14 | K38: 0 | L38: identity | M38: treatm | N38: normal
A39: 42 | B39: aph_vxt | C39: Aphanomyces | E39: Aphanomyces | F39: Greenhouse | G39: Index 0-100 | H39: 1 | I39: 1 | J39: 14 | K39: 0 | L39: identity | M39: treatm | N39: normal
A40: 43 | B40: aph_field | C40: Aphanomyces | E40: Aphanomyces | F40: Graded in field | G40: Sc. 0-5 | H40: 1 | I40: 1 | J40: 14 | K40: 0 | L40: identity | M40: treatm | N40: normal
A41: 44 | B41: mainbolt | C41: Fröstockar | D41: Stok | E41: Bolters | F41: Early | G41: ‰ | H41: 1 | I41: 1 | J41: 9 | K41: 0 | L41: identity | M41: treatm | N41: normal
A42: 45 | B42: sidebolt | C42: Sidoskott | D42: Stok | E42: Lateral | F42: Early | G42: ‰ | H42: 1 | I42: 1 | J42: 9 | K42: 0 | L42: identity | M42: treatm | N42: normal
A43: 46 | B43: mainbolt_a2 | C43: Fröstockar | D43: Stok | E43: Bolters | F43: Late | G43: ‰ | H43: 1 | I43: 1 | J43: 11 | K43: 0 | L43: identity | M43: treatm | N43: normal
A44: 47 | B44: sidebolt_a2 | C44: Sidoskott | D44: Stok | E44: Lateral | F44: Late | G44: ‰ | H44: 1 | I44: 1 | J44: 9 | K44: 0 | L44: identity | M44: treatm | N44: normal
A45: 48 | B45: bolters | C45: Fröstockar | D45: stock | E45: Bolters | F45: Sum | G45: ‰ | H45: 1 | I45: 1 | J45: 11 | K45: 0 | L45: identity | M45: treatm | N45: normal
A46: 49 | B46: height | C46: Nackhöjd | D46: Højde | E46: Height | G46: mm | H46: 1 | I46: 1 | J46: 10 | K46: 1 | L46: identity | M46: treatm | N46: normal | O46: 0
A47: 50 | B47: hojde_s15 | C47: Nackhöjd sd | D47: Højde std | E47: Height std | G47: mm | H47: 1 | I47: 1 | J47: 11 | K47: 1 | L47: identity | M47: treatm | N47: normal | O47: 0
A48: 51 | B48: yellowleaf | C48: Gula blad | D48: Gule blade | E48: Yellow leaves | F48: Aug | G48: Sc. 0-10 | H48: 1 | I48: 1 | J48: 10.5 | K48: 0 | L48: identity | M48: treatm | N48: normal
A49: 52 | B49: leafcover | C49: Bladtäckning | D49: Bladdække | E49: Leafcover | F49: Sep | G49: Sc. 1-100 | H49: 1 | I49: 1 | J49: 13 | K49: 1 | L49: identity | M49: treatm | N49: normal
A50: 53 | B50: topvigour | C50: Friskhet | D50: Topfriskhed | E50: Leaf vigour | F50: Sep | G50: Sc. 1-10 | H50: 1 | I50: 1 | J50: 12 | K50: 1 | L50: identity | M50: treatm | N50: normal
A51: 54 | B51: mgdef | C51: mgdef | D51: Mg mangel | E51: Mg deficiency | G51: Sc. 0-10 | H51: 1 | I51: 1 | J51: 9 | K51: 1 | L51: identity | M51: treatm | N51: normal
A52: 55 | B52: vaskbarhed | C52: Tvättbarhet | D52: Vaskbar | E52: Washability | G52: Sc. 1-9 | H52: 1 | I52: 1 | J52: 8 | K52: 1 | L52: identity | M52: treatm | N52: normal
A53: 56 | B53: grenethed | C53: Grenighet | D53: Grene | E53: Branching | G53: Sc. 1-9 | H53: 1 | I53: 1 | J53: 8 | K53: 1 | L53: identity | M53: treatm | N53: normal
A54: 57 | B54: glathed | C54: Ytans jämnhet | D54: Glathed | E54: Smoothness | G54: Sc. 1-4 | H54: 1 | I54: 1 | J54: 11 | K54: 1 | L54: identity | M54: treatm | N54: normal
A55: 58 | B55: mildew_scale | C55: Mjöldagg | D55: Meldug | E55: Mildew | F55: Early | G55: Sc. 1-100 | H55: 1 | I55: 1 | J55: 9 | K55: 0 | L55: identity | M55: treatm | N55: normal
A56: 59 | B56: rust_scale | C56: Rost | D56: Rust | E56: Rust | F56: Early | G56: Sc. 1-100 | H56: 1 | I56: 1 | J56: 7 | K56: 0 | L56: identity | M56: treatm | N56: normal
A57: 60 | B57: ramularia_scale | C57: Ramularia | D57: Ramularia | E57: Ramularia | F57: Early | G57: Sc. 1-100 | H57: 1 | I57: 1 | J57: 10 | K57: 0 | L57: identity | M57: treatm | N57: normal
A58: 61 | B58: cerco_scale | C58: Cercospora | D58: Cercospora | E58: Cercospora | F58: Early | G58: Sc. 1-100 | H58: 1 | I58: 1 | J58: 11 | K58: 0 | L58: identity | M58: treatm | N58: normal
A59: 62 | B59: mildew_scale_a2 | C59: Mjöldagg | D59: Meldug | E59: Mildew | F59: Mid | G59: Sc. 1-100 | H59: 1 | I59: 1 | J59: 9 | K59: 0 | L59: identity | M59: treatm | N59: normal
A60: 63 | B60: rust_scale_a2 | C60: Rost | D60: Rust | E60: Rust | F60: Mid | G60: Sc. 1-100 | H60: 1 | I60: 1 | J60: 7 | K60: 0 | L60: identity | M60: treatm | N60: normal
A61: 64 | B61: ramularia_scale_a2 | C61: Ramularia | D61: Ramularia | E61: Ramularia | F61: Mid | G61: Sc. 1-100 | H61: 1 | I61: 1 | J61: 10 | K61: 0 | L61: identity | M61: treatm | N61: normal
A62: 65 | B62: cerco_scale_a2 | C62: Cercospora | D62: Cercospora | E62: Cercospora | F62: Mid | G62: Sc. 1-100 | H62: 1 | I62: 1 | J62: 11 | K62: 0 | L62: identity | M62: treatm | N62: normal
A63: 66 | B63: mildew_scale_a3 | C63: Mjöldagg | D63: Meldug | E63: Mildew | F63: Late | G63: Sc. 1-100 | H63: 1 | I63: 1 | J63: 9 | K63: 0 | L63: identity | M63: treatm | N63: normal
A64: 67 | B64: rust_scale_a3 | C64: Rost | D64: Rust | E64: Rust | F64: Late | G64: Sc. 1-100 | H64: 1 | I64: 1 | J64: 7 | K64: 0 | L64: identity | M64: treatm | N64: normal
A65: 68 | B65: ramularia_scale_a3 | C65: Ramularia | D65: Ramularia | E65: Ramularia | F65: Late | G65: Sc. 1-100 | H65: 1 | I65: 1 | J65: 10 | K65: 0 | L65: identity | M65: treatm | N65: normal
A66: 69 | B66: cerco_scale_a3 | C66: Cercospora | D66: Cercospora | E66: Cercospora | F66: Late | G66: Sc. 1-100 | H66: 1 | I66: 1 | J66: 11 | K66: 0 | L66: identity | M66: treatm | N66: normal
A67: 70 | B67: mildew_scale_a4 | C67: Mjöldagg | D67: Meldug | E67: Mildew | F67: Very late | G67: Sc. 1-100 | H67: 1 | I67: 1 | J67: 9 | K67: 0 | L67: identity | M67: treatm | N67: normal
A68: 71 | B68: rust_scale_a4 | C68: Rost | D68: Rust | E68: Rust | F68: Very late | G68: Sc. 1-100 | H68: 1 | I68: 1 | J68: 7 | K68: 0 | L68: identity | M68: treatm | N68: normal
A69: 72 | B69: ramularia_scale_a4 | C69: Ramularia | D69: Ramularia | E69: Ramularia | F69: Very late | G69: Sc. 1-100 | H69: 1 | I69: 1 | J69: 10 | K69: 0 | L69: identity | M69: treatm | N69: normal
A70: 73 | B70: cerco_scale_a4 | C70: Cercospora | D70: Cercospora | E70: Cercospora | F70: Very late | G70: Sc. 1-100 | H70: 1 | I70: 1 | J70: 11 | K70: 0 | L70: identity | M70: treatm | N70: normal
A71: 74 | B71: seedqual | C71: Luckor | E71: Nr of gaps | F71: per plot | G71: >50 cm | H71: 1 | I71: 1 | J71: 12 | K71: 0 | L71: identity | M71: treatm | N71: normal
A72: 75 | B72: Svampresistens | C72: Svampresistens | E72: untreated/treated | F72: Leaf diseases | G72: % | H72: 1 | J72: 14 | K72: 1 | L72: identity | M72: treatm | N72: normal
A73: 76 | B73: frekvens_1 | C73: Frekvens | D73: Frekvens | E73: Frequency | F73: nr1 | G73: 100 blade % | H73: 1 | I73: 1 | J73: 11 | K73: 0 | L73: identity | M73: treatm | N73: normal
A74: 77 | B74: frekvens_2 | C74: Frekvens | D74: Frekvens | E74: Frequency | F74: nr2 | G74: 100 blade % | H74: 1 | I74: 1 | J74: 11 | K74: 0 | L74: identity | M74: treatm | N74: normal
A75: 78 | B75: frekvens_3 | C75: Frekvens | D75: Frekvens | E75: Frequency | F75: nr3 | G75: 100 blade % | H75: 1 | I75: 1 | J75: 11 | K75: 0 | L75: identity | M75: treatm | N75: normal
A76: 79 | B76: frekvens_4 | C76: Frekvens | D76: Frekvens | E76: Frequency | F76: nr4 | G76: 100 blade % | H76: 1 | I76: 1 | J76: 11 | K76: 0 | L76: identity | M76: treatm | N76: normal
A77: 80 | B77: frekvens_5 | C77: Frekvens | D77: Frekvens | E77: Frequency | F77: nr5 | G77: 100 blade % | H77: 1 | I77: 1 | J77: 11 | K77: 0 | L77: identity | M77: treatm | N77: normal
A78: 81 | B78: frekvens_6 | C78: Frekvens | D78: Frekvens | E78: Frequency | F78: nr6 | G78: 100 blade % | H78: 1 | I78: 1 | J78: 11 | K78: 0 | L78: identity | M78: treatm | N78: normal
A79: 82 | B79: frekvens_7 | C79: Frekvens | D79: Frekvens | E79: Frequency | F79: nr7 | G79: 100 blade % | H79: 1 | I79: 1 | J79: 11 | K79: 0 | L79: identity | M79: treatm | N79: normal
A80: 83 | B80: frekvens_8 | C80: Frekvens | D80: Frekvens | E80: Frequency | F80: nr8 | G80: 100 blade % | H80: 1 | I80: 1 | J80: 11 | K80: 0 | L80: identity | M80: treatm | N80: normal
A81: 84 | B81: regrowth | C81: Återväxt | E81: Regrowth | F81: Late | G81: Sc. 1-100 | H81: 1 | I81: 1 | J81: 11.5 | K81: 0 | L81: identity | M81: treatm | N81: normal
A82: 85 | B82: N | C82: Kväve | E82: Nitrogen | F82: 2.7 | G82: (%) | H82: 1 | I82: 1 | J82: 7 | K82: 1 | L82: identity | M82: treatm | N82: normal | O82: 0 | Q82: =_xludf.split(B82,2) -> 
A83: 86 | B83: P | C83: Fosfor | E83: Phosphorus | F83: 0.27 | G83: (%) | H83: 1 | I83: 1 | J83: 7 | K83: 1 | L83: identity | M83: treatm | N83: normal | O83: 0
A84: 87 | B84: K | C84: Kalium | E84: Potassium | F84: 2.7 | G84: (%) | H84: 1 | I84: 1 | J84: 7 | K84: 1 | L84: identity | M84: treatm | N84: normal | O84: 0
A85: 88 | B85: Mn | C85: Mangan | E85: Manganese | F85: 35 | G85: (ppm) | H85: 1 | I85: 1 | J85: 8 | K85: 1 | L85: identity | M85: treatm | N85: normal | O85: 0
A86: 89 | B86: B | C86: Bor | E86: Boron | F86: 35 | G86: (ppm) | H86: 1 | I86: 1 | J86: 5 | K86: 1 | L86: identity | M86: treatm | N86: normal | O86: 0
A87: 90 | B87: Na | C87: Natrium | E87: Sodium | G87: (%) | H87: 1 | I87: 1 | J87: 8 | K87: 1 | L87: identity | M87: treatm | N87: normal | O87: 0
A88: 91 | B88: Mg | C88: Magnesium | E88: Magnesium | F88: 0.23 | G88: (%) | H88: 1 | I88: 1 | J88: 11 | K88: 1 | L88: identity | M88: treatm | N88: normal | O88: 0
A89: 92 | B89: Ca | C89: Kalcium | E89: Calcium | F89: 0.53 | G89: (%) | H89: 1 | I89: 1 | J89: 8 | K89: 1 | L89: identity | M89: treatm | N89: normal | O89: 0
A90: 93 | B90: Cu | C90: Koppar | E90: Copper | F90: 5.4 | G90: (ppm) | H90: 1 | I90: 1 | J90: 7 | K90: 1 | L90: identity | M90: treatm | N90: normal | O90: 0
A91: 94 | B91: Mo | C91: Molybden | E91: Molybdenum | F91: 0.19 | G91: (ppm) | H91: 1 | I91: 1 | J91: 10 | K91: 1 | L91: identity | M91: treatm | N91: normal | O91: 0
A92: 95 | B92: Fe | C92: Järn | E92: Iron | F92: 38 | G92: (ppm) | H92: 1 | I92: 1 | J92: 5 | K92: 1 | L92: identity | M92: treatm | N92: normal | O92: 0
A93: 96 | B93: Zn | C93: Zink | E93: Zinc | F93: 50 | G93: (ppm) | H93: 1 | I93: 1 | J93: 6 | K93: 1 | L93: identity | M93: treatm | N93: normal | O93: 0
A94: 97 | B94: S | C94: Svavel | E94: Sulphur | F94: 0.2 | G94: (%) | H94: 1 | I94: 1 | J94: 7 | K94: 1 | L94: identity | M94: treatm | N94: normal | O94: 0
A95: 98 | B95: DW | C95: Torrvikt | E95: Dry weight | F95: Early | G95: (g) | H95: 1 | I95: 1 | J95: 10 | K95: 1 | L95: identity | M95: treatm | N95: normal | O95: 0
A96: 99 | B96: N_a2 | C96: Kväve | E96: Nitrogen | F96: Late | G96: (%) | H96: 1 | I96: 1 | J96: 10 | K96: 1 | L96: identity | M96: treatm | N96: normal | O96: 0
A97: 100 | B97: P_a2 | C97: Fosfor | E97: Phosphorus | F97: Late | G97: (%) | H97: 1 | I97: 1 | J97: 10 | K97: 1 | L97: identity | M97: treatm | N97: normal | O97: 0
A98: 101 | B98: K_a2 | C98: Kalium | E98: Potassium | F98: Late | G98: (%) | H98: 1 | I98: 1 | J98: 10 | K98: 1 | L98: identity | M98: treatm | N98: normal | O98: 0
A99: 102 | B99: Mn_a2 | C99: Mangan | E99: Manganese | F99: Late | G99: (ppm) | H99: 1 | I99: 1 | J99: 10 | K99: 1 | L99: identity | M99: treatm | N99: normal | O99: 0
A100: 103 | B100: B_a2 | C100: Bor | E100: Boron | F100: Late | G100: (ppm) | H100: 1 | I100: 1 | J100: 10 | K100: 1 | L100: identity | M100: treatm | N100: normal | O100: 0
A101: 104 | B101: Na_a2 | C101: Natrium | E101: Sodium | F101: Late | G101: (%) | H101: 1 | I101: 1 | J101: 10 | K101: 1 | L101: identity | M101: treatm | N101: normal | O101: 0
A102: 105 | B102: Mg_a2 | C102: Magnesium | E102: Magnesium | F102: Late | G102: (%) | H102: 1 | I102: 1 | J102: 10 | K102: 1 | L102: identity | M102: treatm | N102: normal | O102: 0
A103: 106 | B103: Ca_a2 | C103: Kalcium | E103: Calcium | F103: Late | G103: (%) | H103: 1 | I103: 1 | J103: 10 | K103: 1 | L103: identity | M103: treatm | N103: normal | O103: 0
A104: 107 | B104: Cu_a2 | C104: Koppar | E104: Copper | F104: Late | G104: (ppm) | H104: 1 | I104: 1 | J104: 10 | K104: 1 | L104: identity | M104: treatm | N104: normal | O104: 0
A105: 108 | B105: Mo_a2 | C105: Molybden | E105: Molybdenum | F105: Late | G105: (ppm) | H105: 1 | I105: 1 | J105: 10 | K105: 1 | L105: identity | M105: treatm | N105: normal | O105: 0
A106: 109 | B106: Fe_a2 | C106: Järn | E106: Iron | F106: Late | G106: (ppm) | H106: 1 | I106: 1 | J106: 10 | K106: 1 | L106: identity | M106: treatm | N106: normal | O106: 0
A107: 110 | B107: Zn_a2 | C107: Zink | E107: Zinc | F107: Late | G107: (ppm) | H107: 1 | I107: 1 | J107: 10 | K107: 1 | L107: identity | M107: treatm | N107: normal | O107: 0
A108: 111 | B108: S_a2 | C108: Svavel | E108: Sulphur | F108: Late | G108: (%) | H108: 1 | I108: 1 | J108: 10 | K108: 1 | L108: identity | M108: treatm | N108: normal | O108: 0
A109: 112 | B109: DW_a2 | C109: Torrvikt | E109: Dry weight | F109: Late | G109: (g) | H109: 1 | I109: 1 | J109: 10 | K109: 1 | L109: identity | M109: treatm | N109: normal
A110: 113 | B110: br_weight_in1 | C110: Vikt | E110: Weight | F110: Before storage | G110: (kg) | H110: 1 | I110: 1 | J110: 10 | K110: 1 | L110: identity | M110: treatm | N110: normal
A111: 114 | B111: sh_in | C111: Sockerhalt | E111: sugar content | F111: Before storage | G111: (%) | H111: 1 | I111: 1 | J111: 10 | K111: 1 | L111: identity | M111: treatm | N111: normal
A112: 115 | B112: renpct_in | C112: Renhet | E112: Cleaness | F112: Before storage | G112: (%) | H112: 1 | I112: 1 | J112: 10 | K112: 1 | L112: identity | M112: treatm | N112: normal
A113: 116 | B113: sy_in | C113: Sockermängd | E113: Sugar | F113: per box (BS) | G113: (kg) | H113: 1 | I113: 1 | J113: 10 | K113: 1 | L113: identity | M113: treatm | N113: normal
A114: 117 | B114: inv_in | C114: Invert | E114: Invert | F114: Before storage | G114: (mmol/kg beet) | H114: 1 | I114: 1 | J114: 10 | K114: 1 | L114: identity | M114: treatm | N114: normal
A115: 118 | B115: ts_in | C115: Torrsubstans | E115: Dry matter | F115: Before storage | G115: (%) | H115: 1 | I115: 1 | J115: 10 | K115: 1 | L115: identity | M115: treatm | N115: normal
A116: 119 | B116: br_weight_out1 | C116: Vikt | E116: Weight | F116: After storage | G116: (kg) | H116: 1 | I116: 1 | J116: 10 | K116: 1 | L116: identity | M116: treatm | N116: normal
A117: 120 | B117: sh_out | C117: Sockerhalt | E117: sugar content | F117: After storage | G117: (%) | H117: 1 | I117: 1 | J117: 10 | K117: 1 | L117: identity | M117: treatm | N117: normal
A118: 121 | B118: sy_out | C118: Sockermängd | E118: Sugar | F118: per box (AS) | G118: (kg) | H118: 1 | I118: 1 | J118: 10 | K118: 1 | L118: identity | M118: treatm | N118: normal
A119: 122 | B119: inv_out | C119: Invert | E119: Invert | F119: After storage | G119: (mmol/kg beet) | H119: 1 | I119: 1 | J119: 10 | K119: 1 | L119: identity | M119: treatm | N119: normal
A120: 123 | B120: ts_out | C120: Torrsubstans | E120: Dry matter | F120: After storage | G120: (%) | H120: 1 | I120: 1 | J120: 10 | K120: 1 | L120: identity | M120: treatm | N120: normal
A121: 124 | B121: blaa_out | C121: Blåtal | E121: Amino-N | F121: After storage | G121: mg/100g sugar | H121: 1 | I121: 1 | J121: 10 | K121: 1 | L121: identity | M121: treatm | N121: normal
A122: 125 | B122: kan_out | C122: K+Na | E122: K+Na | F122: After storage | H122: 1 | I122: 1 | J122: 10 | K122: 1 | L122: identity | M122: treatm | N122: normal
A123: 126 | B123: S_loss1 | C123: Sockerförlust | E123: Sugar loss | F123: After storage | G123: (%) | H123: 1 | I123: 1 | J123: 10 | K123: 1 | L123: identity | M123: treatm | N123: normal
A124: 127 | B124: S_loss2 | C124: Sockerförlust | E124: Sugar loss | F124: After storage | G124: (%) | H124: 1 | I124: 1 | J124: 10 | K124: 1 | L124: identity | M124: treatm | N124: normal
A125: 128 | B125: pen_avg | C125: Penetrometer | E125: penetrometer | F125: early | G125: Mpa | H125: 1 | I125: 1 | J125: 14 | K125: 1 | L125: identity | M125: treatm | N125: normal | O125: 0
A126: 129 | B126: pen_avg_a2 | C126: Penetrometer | E126: penetrometer | F126: late | G126: Mpa | H126: 1 | I126: 1 | J126: 14 | K126: 1 | L126: identity | M126: treatm | N126: normal | O126: 0
A127: 130 | B127: NDVI | C127: NDVI | D127: NDVI | E127: NDVI | F127: Measurement 1 | G127: Ground cover | H127: 1 | I127: 1 | J127: 10 | K127: 1 | L127: identity | M127: treatm | N127: normal | O127: 0
A128: 131 | B128: NDVI_a2 | C128: NDVI | D128: NDVI | E128: NDVI | F128: Measurement 2 | G128: Ground cover | H128: 1 | I128: 1 | J128: 10 | K128: 1 | L128: identity | M128: treatm | N128: normal | O128: 0
A129: 132 | B129: NDVI_a3 | C129: NDVI | D129: NDVI | E129: NDVI | F129: Measurement 3 | G129: Ground cover | H129: 1 | I129: 1 | J129: 10 | K129: 1 | L129: identity | M129: treatm | N129: normal | O129: 0
A130: 133 | B130: NDVI_a4 | C130: NDVI | D130: NDVI | E130: NDVI | F130: Measurement 4 | G130: Ground cover | H130: 1 | I130: 1 | J130: 10 | K130: 1 | L130: identity | M130: treatm | N130: normal | O130: 0
A131: 134 | B131: NDVI_a5 | C131: NDVI | D131: NDVI | E131: NDVI | F131: Measurement 5 | G131: Ground cover | H131: 1 | I131: 1 | J131: 10 | K131: 1 | L131: identity | M131: treatm | N131: normal | O131: 0
A132: 135 | B132: Cardy_N | C132: N Konc | D132: N Konc | E132: quick sensor | F132: Measurement 1 | G132: ppm No3 | H132: 1 | I132: 1 | J132: 10 | K132: 1 | L132: identity | M132: treatm | N132: normal | O132: 0
A133: 136 | B133: Cardy_Na | C133: Na Konc | D133: Na Konc | E133: quick sensor | F133: Measurement 1 | G133: ppm Na3 | H133: 1 | I133: 1 | J133: 10 | K133: 1 | L133: identity | M133: treatm | N133: normal | O133: 0
A134: 137 | B134: Cardy_K | C134: K Konc | D134: K Konc | E134: quick sensor | F134: Measurement 1 | G134: ppm K | H134: 1 | I134: 1 | J134: 10 | K134: 1 | L134: identity | M134: treatm | N134: normal | O134: 0
A135: 138 | B135: Cardy_N_a2 | C135: N Konc | D135: N Konc | E135: quick sensor | F135: Measurement 2 | G135: ppm No3 | H135: 1 | I135: 1 | J135: 10 | K135: 1 | L135: identity | M135: treatm | N135: normal | O135: 0
A136: 139 | B136: Cardy_Na_a2 | C136: Na Konc | D136: Na Konc | E136: quick sensor | F136: Measurement 2 | G136: ppm Na3 | H136: 1 | I136: 1 | J136: 10 | K136: 1 | L136: identity | M136: treatm | N136: normal | O136: 0
A137: 140 | B137: Cardy_K_a2 | C137: K Konc | D137: K Konc | E137: quick sensor | F137: Measurement 2 | G137: ppm K | H137: 1 | I137: 1 | J137: 10 | K137: 1 | L137: identity | M137: treatm | N137: normal | O137: 0
A138: 141 | B138: Cardy_N_a3 | C138: N Konc | D138: N Konc | E138: quick sensor | F138: Measurement 3 | G138: ppm No3 | H138: 1 | I138: 1 | J138: 10 | K138: 1 | L138: identity | M138: treatm | N138: normal | O138: 0
A139: 142 | B139: Cardy_Na_a3 | C139: Na Konc | D139: Na Konc | E139: quick sensor | F139: Measurement 3 | G139: ppm Na3 | H139: 1 | I139: 1 | J139: 10 | K139: 1 | L139: identity | M139: treatm | N139: normal | O139: 0
A140: 143 | B140: Cardy_K_a3 | C140: K Konc | D140: K Konc | E140: quick sensor | F140: Measurement 3 | G140: ppm K | H140: 1 | I140: 1 | J140: 10 | K140: 1 | L140: identity | M140: treatm | N140: normal | O140: 0
A141: 144 | B141: Cardy_N_a4 | C141: N Konc | D141: N Konc | E141: quick sensor | F141: Measurement 4 | G141: ppm No3 | H141: 1 | I141: 1 | J141: 10 | K141: 1 | L141: identity | M141: treatm | N141: normal | O141: 0
A142: 145 | B142: Cardy_Na_a4 | C142: Na Konc | D142: Na Konc | E142: quick sensor | F142: Measurement 4 | G142: ppm Na3 | H142: 1 | I142: 1 | J142: 10 | K142: 1 | L142: identity | M142: treatm | N142: normal | O142: 0
A143: 146 | B143: Cardy_K_a4 | C143: K Konc | D143: K Konc | E143: quick sensor | F143: Measurement 4 | G143: ppm K | H143: 1 | I143: 1 | J143: 10 | K143: 1 | L143: identity | M143: treatm | N143: normal | O143: 0
A144: 147 | B144: br_weight_in1 | C144: Vikt | E144: Weight | F144: Before storage | G144: (kg) | H144: 1 | I144: 1 | J144: 10 | K144: 1 | L144: identity | M144: treatm | N144: normal
A145: 148 | B145: sh_in | C145: Sockerhalt | E145: sugar content | F145: Before storage | G145: (%) | H145: 1 | I145: 1 | J145: 10 | K145: 1 | L145: identity | M145: treatm | N145: normal
A146: 149 | B146: renpct_in | C146: Renhet | E146: Cleaness | F146: Before storage | G146: (%) | H146: 1 | I146: 1 | J146: 10 | K146: 1 | L146: identity | M146: treatm | N146: normal
A147: 150 | B147: sy_in | C147: Sockermängd | E147: Sugar | F147: per box (BS) | G147: (kg) | H147: 1 | I147: 1 | J147: 10 | K147: 1 | L147: identity | M147: treatm | N147: normal
A148: 151 | B148: inv_in | C148: Invert | E148: Invert | F148: Before storage | G148: (mmol/kg beet) | H148: 1 | I148: 1 | J148: 10 | K148: 1 | L148: identity | M148: treatm | N148: normal
A149: 152 | B149: ts_in | C149: Torrsubstans | E149: Dry matter | F149: Before storage | G149: (%) | H149: 1 | I149: 1 | J149: 10 | K149: 1 | L149: identity | M149: treatm | N149: normal
A150: 153 | B150: br_weight_out1 | C150: Vikt | E150: Weight | F150: After storage | G150: (kg) | H150: 1 | I150: 1 | J150: 10 | K150: 1 | L150: identity | M150: treatm | N150: normal
A151: 154 | B151: sh_out | C151: Sockerhalt | E151: sugar content | F151: After storage | G151: (%) | H151: 1 | I151: 1 | J151: 10 | K151: 1 | L151: identity | M151: treatm | N151: normal
A152: 155 | B152: sy_out | C152: Sockermängd | E152: Sugar | F152: per box (AS) | G152: (kg) | H152: 1 | I152: 1 | J152: 10 | K152: 1 | L152: identity | M152: treatm | N152: normal
A153: 156 | B153: inv_out | C153: Invert | E153: Invert | F153: After storage | G153: (mmol/kg beet) | H153: 1 | I153: 1 | J153: 10 | K153: 1 | L153: identity | M153: treatm | N153: normal
A154: 157 | B154: ts_out | C154: Torrsubstans | E154: Dry matter | F154: After storage | G154: (%) | H154: 1 | I154: 1 | J154: 10 | K154: 1 | L154: identity | M154: treatm | N154: normal
A155: 158 | B155: blaa_out | C155: Blåtal | E155: Amino-N | F155: After storage | G155: mg/100g sugar | H155: 1 | I155: 1 | J155: 10 | K155: 1 | L155: identity | M155: treatm | N155: normal
A156: 159 | B156: kan_out | C156: K+Na | E156: K+Na | F156: After storage | H156: 1 | I156: 1 | J156: 10 | K156: 1 | L156: identity | M156: treatm | N156: normal
A157: 160 | B157: S_loss1 | C157: Sockerförlust | E157: Sugar loss | F157: After storage | G157: (%) | H157: 1 | I157: 1 | J157: 10 | K157: 1 | L157: identity | M157: treatm | N157: normal
A158: 161 | B158: S_loss2 | C158: Sockerförlust | E158: Sugar loss | F158: After storage | G158: (%) | H158: 1 | I158: 1 | J158: 10 | K158: 1 | L158: identity | M158: treatm | N158: normal
A159: 162 | B159: Type | H159: 1 | I159: 1 | J159: 10 | K159: 1 | L159: identity | M159: treatm | N159: normal
A160: 160 | B160: AAAAA_proc_obs1 | C160: Total marktäckning | D160: Total marktäckning | E160: Total ground cover | F160: Below, June | G160: % | H160: 1 | I160: 1 | J160: 19 | K160: 1 | L160: identity | M160: treatm | N160: normal
A161: 161 | B161: AAAAA_2UB | C161: Total marktäckning | D161: Total marktäckning | E161: Total ground cover | F161: Below, Aug | G161: % | H161: 1 | I161: 1 | J161: 19 | K161: 1 | L161: identity | M161: treatm | N161: normal
A162: 162 | B162: AAAAA_2ÖB | C162: Total marktäckning | D162: Total marktäckning | E162: Total ground cover | F162: Above, Aug | G162: % | H162: 1 | I162: 1 | J162: 19 | K162: 1 | L162: identity | M162: treatm | N162: normal
A163: 163 | B163: gen_phy | C163: Generell fytotox | D163: Generell fytotox | E163: gen_phy | F163: First grading | G163: 1-30 | H163: 1 | I163: 1 | J163: 16 | K163: 1 | L163: identity | M163: treatm | N163: normal
A164: 164 | B164: thi_phy | C164: Glesning | D164: Glesning | E164: thi_phy | F164: First grading | G164: % | H164: 1 | I164: 1 | J164: 8 | K164: 1 | L164: identity | M164: treatm | N164: normal
A165: 165 | B165: vor_phy | C165: Biomassareduktion | D165: Biomassareduktion | E165: vor_phy | F165: First grading | G165: % | H165: 1 | I165: 1 | J165: 20 | K165: 1 | L165: identity | M165: treatm | N165: normal
A166: 166 | B166: stu_phy | C166: Eftersatt höjdtillväxt | D166: Eftersatt höjdtillväxt | E166: stu_phy | F166: First grading | G166: % | H166: 1 | I166: 1 | J166: 20 | K166: 1 | L166: identity | M166: treatm | N166: normal
A167: 167 | B167: ble_phy | C167: Vitfärgning | D167: Vitfärgning | E167: ble_phy | F167: First grading | G167: % | H167: 1 | I167: 1 | J167: 11 | K167: 1 | L167: identity | M167: treatm | N167: normal
A168: 168 | B168: chl_phy | C168: Kloros | D168: Kloros | E168: chl_phy | F168: First grading | G168: % | H168: 1 | I168: 1 | J168: 8 | K168: 1 | L168: identity | M168: treatm | N168: normal
A169: 169 | B169: nec_phy | C169: Nekros | D169: Nekros | E169: nec_phy | F169: First grading | G169: % | H169: 1 | I169: 1 | J169: 8 | K169: 1 | L169: identity | M169: treatm | N169: normal
A170: 170 | B170: def_phy | C170: Missbildade blad | D170: Missbildade blad | E170: def_phy | F170: First grading | G170: % | H170: 1 | I170: 1 | J170: 17 | K170: 1 | L170: identity | M170: treatm | N170: normal
A171: 171 | B171: phy_ldr | C171: Tappade blad | D171: Tappade blad | E171: phy_ldr | F171: First grading | G171: % | H171: 1 | I171: 1 | J171: 14 | K171: 1 | L171: identity | M171: treatm | N171: normal
A172: 172 | B172: phy_war | C172: Försvagat vaxlager | D172: Försvagat vaxlager | E172: phy_war | F172: First grading | G172: % | H172: 1 | I172: 1 | J172: 16 | K172: 1 | L172: identity | M172: treatm | N172: normal
A173: 173 | B173: phy_del | C173: Försenad tillväxt | D173: Försenad tillväxt | E173: phy_del | F173: First grading | G173: % | H173: 1 | I173: 1 | J173: 17 | K173: 1 | L173: identity | M173: treatm | N173: normal
A174: 174 | B174: gen_phy_a2 | C174: Generell fytotox | D174: Generell fytotox | E174: gen_phy | F174: Second grading | G174: 1-30 | H174: 1 | I174: 1 | J174: 16 | K174: 1 | L174: identity | M174: treatm | N174: normal
A175: 175 | B175: thi_phy_a2 | C175: Glesning | D175: Glesning | E175: thi_phy | F175: Second grading | G175: % | H175: 1 | I175: 1 | J175: 8 | K175: 1 | L175: identity | M175: treatm | N175: normal
A176: 176 | B176: vor_phy_a2 | C176: Biomassareduktion | D176: Biomassareduktion | E176: vor_phy | F176: Second grading | G176: % | H176: 1 | I176: 1 | J176: 20 | K176: 1 | L176: identity | M176: treatm | N176: normal
A177: 177 | B177: stu_phy_a2 | C177: Eftersatt höjdtillväxt | D177: Eftersatt höjdtillväxt | E177: stu_phy | F177: Second grading | G177: % | H177: 1 | I177: 1 | J177: 20 | K177: 1 | L177: identity | M177: treatm | N177: normal
A178: 178 | B178: ble_phy_a2 | C178: Vitfärgning | D178: Vitfärgning | E178: ble_phy | F178: Second grading | G178: % | H178: 1 | I178: 1 | J178: 11 | K178: 1 | L178: identity | M178: treatm | N178: normal
A179: 179 | B179: chl_phy_a2 | C179: Kloros | D179: Kloros | E179: chl_phy | F179: Second grading | G179: % | H179: 1 | I179: 1 | J179: 8 | K179: 1 | L179: identity | M179: treatm | N179: normal
A180: 180 | B180: nec_phy_a2 | C180: Nekros | D180: Nekros | E180: nec_phy | F180: Second grading | G180: % | H180: 1 | I180: 1 | J180: 8 | K180: 1 | L180: identity | M180: treatm | N180: normal
A181: 181 | B181: def_phy_a2 | C181: Missbildade blad | D181: Missbildade blad | E181: def_phy | F181: Second grading | G181: % | H181: 1 | I181: 1 | J181: 17 | K181: 1 | L181: identity | M181: treatm | N181: normal
A182: 182 | B182: phy_ldr_a2 | C182: Tappade blad | D182: Tappade blad | E182: phy_ldr | F182: Second grading | G182: % | H182: 1 | I182: 1 | J182: 14 | K182: 1 | L182: identity | M182: treatm | N182: normal
A183: 183 | B183: phy_war_a2 | C183: Försvagat vaxlager | D183: Försvagat vaxlager | E183: phy_war | F183: Second grading | G183: % | H183: 1 | I183: 1 | J183: 16 | K183: 1 | L183: identity | M183: treatm | N183: normal
A184: 184 | B184: phy_del_a2 | C184: Försenad tillväxt | D184: Försenad tillväxt | E184: phy_del | F184: Second grading | G184: % | H184: 1 | I184: 1 | J184: 17 | K184: 1 | L184: identity | M184: treatm | N184: normal
A185: 185 | B185: gen_phy_a3 | C185: Generell fytotox | D185: Generell fytotox | E185: gen_phy | F185: Third grading | G185: 1-30 | H185: 1 | I185: 1 | J185: 16 | K185: 1 | L185: identity | M185: treatm | N185: normal
A186: 186 | B186: thi_phy_a3 | C186: Glesning | D186: Glesning | E186: thi_phy | F186: Third grading | G186: % | H186: 1 | I186: 1 | J186: 8 | K186: 1 | L186: identity | M186: treatm | N186: normal
A187: 187 | B187: vor_phy_a3 | C187: Biomassareduktion | D187: Biomassareduktion | E187: vor_phy | F187: Third grading | G187: % | H187: 1 | I187: 1 | J187: 20 | K187: 1 | L187: identity | M187: treatm | N187: normal
A188: 188 | B188: stu_phy_a3 | C188: Eftersatt höjdtillväxt | D188: Eftersatt höjdtillväxt | E188: stu_phy | F188: Third grading | G188: % | H188: 1 | I188: 1 | J188: 20 | K188: 1 | L188: identity | M188: treatm | N188: normal
A189: 189 | B189: ble_phy_a3 | C189: Vitfärgning | D189: Vitfärgning | E189: ble_phy | F189: Third grading | G189: % | H189: 1 | I189: 1 | J189: 11 | K189: 1 | L189: identity | M189: treatm | N189: normal
A190: 190 | B190: chl_phy_a3 | C190: Kloros | D190: Kloros | E190: chl_phy | F190: Third grading | G190: % | H190: 1 | I190: 1 | J190: 8 | K190: 1 | L190: identity | M190: treatm | N190: normal
A191: 191 | B191: nec_phy_a3 | C191: Nekros | D191: Nekros | E191: nec_phy | F191: Third grading | G191: % | H191: 1 | I191: 1 | J191: 8 | K191: 1 | L191: identity | M191: treatm | N191: normal
A192: 192 | B192: def_phy_a3 | C192: Missbildade blad | D192: Missbildade blad | E192: def_phy | F192: Third grading | G192: % | H192: 1 | I192: 1 | J192: 17 | K192: 1 | L192: identity | M192: treatm | N192: normal
A193: 193 | B193: phy_ldr_a3 | C193: Tappade blad | D193: Tappade blad | E193: phy_ldr | F193: Third grading | G193: % | H193: 1 | I193: 1 | J193: 14 | K193: 1 | L193: identity | M193: treatm | N193: normal
A194: 194 | B194: phy_war_a3 | C194: Försvagat vaxlager | D194: Försvagat vaxlager | E194: phy_war | F194: Third grading | G194: % | H194: 1 | I194: 1 | J194: 16 | K194: 1 | L194: identity | M194: treatm | N194: normal
A195: 195 | B195: phy_del_a3 | C195: Försenad tillväxt | D195: Försenad tillväxt | E195: phy_del | F195: Third grading | G195: % | H195: 1 | I195: 1 | J195: 17 | K195: 1 | L195: identity | M195: treatm | N195: normal
A196: 196 | B196: fytotox_chl_1 | C196: Kloros | E196: fytotox clorosis | F196: TII+10d | G196: % | H196: 1 | I196: 1 | J196: 14 | K196: 1 | L196: identity | M196: treatm | N196: normal
A197: 197 | B197: fytotox_chl_2 | C197: Kloros | E197: fytotox clorosis | F197: TIV+10d | G197: % | H197: 1 | I197: 1 | J197: 14 | K197: 1 | L197: identity | M197: treatm | N197: normal
A198: 198 | B198: fytotox_red_1 | C198: Tillväxthämning | E198: Growth reduction | F198: TII+10d | G198: % | H198: 1 | I198: 1 | J198: 14 | K198: 1 | L198: identity | M198: treatm | N198: normal
A199: 199 | B199: fytotox_red_2 | C199: Tillväxthämning | E199: Growth reduction | F199: TIV+10d | G199: % | H199: 1 | I199: 1 | J199: 14 | K199: 1 | L199: identity | M199: treatm | N199: normal
A200: 200 | B200: fytotox_def_1 | C200: Deformerade blad | E200: fytotox deformation | F200: TII+10d | G200: % | H200: 1 | I200: 1 | J200: 14 | K200: 1 | L200: identity | M200: treatm | N200: normal
... 633 more rows

Sheet Vernalization 2019
L2: Sådatum | M2: Vernalisation 2019
L3: 2017-02-28 | M3: 151.2722335
L4: 2017-03-15 | M4: 116.7340824
L5: 2017-03-25 | M5: 91.30368955
L6: 2017-03-30 | M6: 79.55402327
L7: 2017-04-05 | M7: 70.73940439
L8: 2017-04-15 | M8: 54.79924155

Sheet Sammanställning
A1: 1 | B1: 2 | C1: 3 | D1: 4 | E1: 48
E2: 137
A3: Stocklöpningsförsök | E3: Fröstockar | F3: Fröstockar | G3: Fröstockar | H3: Fröstockar | I3: Fröstockar | J3: Lämplig-såtidpunkt
E4: 2019 | F4: 2017+2019 | G4: 2019 | H4: 2017+2019 | I4: 4 fs 2016-2018
E5: Såtid 1 | G5: Såtid 2
D6: Vernalisation | E6: 152 | F6: 161, 152 | G6: 124 | H6: 134, 124 | I6: 90-111
D7: Enhet | E7: ‰ | F7: ‰ | G7: ‰ | H7: ‰ | I7: ‰
E8: Hög vernalisation | G8: Medel vernalisation | I8: Låg vernalisation
A9: 1 | B9: R | C9: 21402 | D9: Daphna (Gaucho) | E9: 15.818 | F9: =VLOOKUP(C9,'[22]High 2 trials'!$C$9:$H$16,6,FALSE) -> 33.997 | G9: 1.252 | H9: =VLOOKUP(C9,'[22]Medium 2 trials'!$C$9:$H$26,6,FALSE) -> 0.654 | I9: =VLOOKUP(C9,'[22]Low 4 trials'!$C$9:$H$26,6,FALSE) -> 0.755 | J9: Medel
A10: 3 | B10: R | C10: 21539 | D10: Selma KWS | E10: 7.742 | F10: =VLOOKUP(C10,'[22]High 2 trials'!$C$9:$H$16,6,FALSE) -> 22.162 | G10: 0.409 | H10: =VLOOKUP(C10,'[22]Medium 2 trials'!$C$9:$H$26,6,FALSE) -> 0.136 | I10: =VLOOKUP(C10,'[22]Low 4 trials'!$C$9:$H$26,6,FALSE) -> 0.223 | J10: Tidigt
A11: 4 | B11: R | C11: 21403 | D11: Smilla KWS | E11: 32.687 | F11: =VLOOKUP(C11,'[22]High 2 trials'!$C$9:$H$16,6,FALSE) -> 24.615 | G11: 5.117 | H11: =VLOOKUP(C11,'[22]Medium 2 trials'!$C$9:$H$26,6,FALSE) -> 1.561 | I11: =VLOOKUP(C11,'[22]Low 4 trials'!$C$9:$H$26,6,FALSE) -> 0.206 | J11: Medel
A12: 5 | B12: R | C12: 21533 | D12: Farina KWS | E12: 10.023 | F12: =VLOOKUP(C12,'[22]High 2 trials'!$C$9:$H$16,6,FALSE) -> 19.94 | G12: 2.469 | H12: =VLOOKUP(C12,'[22]Medium 2 trials'!$C$9:$H$26,6,FALSE) -> 0.639 | I12: =VLOOKUP(C12,'[22]Low 4 trials'!$C$9:$H$26,6,FALSE) -> 0.315 | J12: Tidigt
A13: 6 | B13: R | C13: 21201 | D13: Cartoon | E13: 33.765 | F13: =VLOOKUP(C13,'[22]High 2 trials'!$C$9:$H$16,6,FALSE) -> 32.809 | G13: 0.336 | H13: =VLOOKUP(C13,'[22]Medium 2 trials'!$C$9:$H$26,6,FALSE) -> 0.386 | I13: =VLOOKUP(C13,'[22]Low 4 trials'!$C$9:$H$26,6,FALSE) -> 0.212 | J13: Medel
A14: 7 | B14: R | C14: 21434 | D14: Klimt | E14: 57.437 | F14: =VLOOKUP(C14,'[22]High 2 trials'!$C$9:$H$16,6,FALSE) -> 43.683 | G14: 0.787 | H14: =VLOOKUP(C14,'[22]Medium 2 trials'!$C$9:$H$26,6,FALSE) -> 3.119 | I14: =VLOOKUP(C14,'[22]Low 4 trials'!$C$9:$H$26,6,FALSE) -> 1.073 | J14: Sen
A15: 8 | B15: R | C15: 21606 | D15: Fortnox (Gaucho) | E15: 173.92 | G15: 3.532 | J15: Sen
A16: 9 | B16: R | C16: 21323 | D16: Cantona KWS | E16: 12.293 | F16: =VLOOKUP(C16,'[22]High 2 trials'!$C$9:$H$16,6,FALSE) -> 15.751 | G16: 1.046 | H16: =VLOOKUP(C16,'[22]Medium 2 trials'!$C$9:$H$26,6,FALSE) -> 0.349 | I16: =VLOOKUP(C16,'[22]Low 4 trials'!$C$9:$H$26,6,FALSE) -> 0.145 | J16: Tidigt
A17: 10 | B17: R | C17: 21508 | D17: Whisky | E17: 49.348 | F17: =VLOOKUP(C17,'[22]High 2 trials'!$C$9:$H$16,6,FALSE) -> 30.386 | G17: 2.005 | H17: =VLOOKUP(C17,'[22]Medium 2 trials'!$C$9:$H$26,6,FALSE) -> 1.275 | I17: =VLOOKUP(C17,'[22]Low 4 trials'!$C$9:$H$26,6,FALSE) -> 0.259 | J17: Medel
A18: 11 | B18: R | C18: 21644 | D18: Lunella KWS | E18: 117.29 | G18: 0.41 | H18: =VLOOKUP(C18,'[22]Medium 2 trials'!$C$9:$H$26,6,FALSE) -> 0.706 | I18: =VLOOKUP(C18,'[22]Low 4 trials'!$C$9:$H$26,6,FALSE) -> 0.258 | J18: Medel
A19: 12 | B19: R | C19: 21643 | D19: Smart Johanna KWS | E19: 11.612 | G19: 5.019 | H19: =VLOOKUP(C19,'[22]Medium 2 trials'!$C$9:$H$26,6,FALSE) -> 1.201 | I19: =VLOOKUP(C19,'[22]Low 4 trials'!$C$9:$H$26,6,FALSE) -> 0.223 | J19: Sen
A20: 13 | B20: O | C20: 21701 | D20: Fenja KWS | E20: 18.163 | G20: 0.194 | H20: =VLOOKUP(C20,'[22]Medium 2 trials'!$C$9:$H$26,6,FALSE) -> 0.14 | I20: =VLOOKUP(C20,'[22]Low 4 trials'!$C$9:$H$26,6,FALSE) -> 0.223 | J20: Tidigt
A21: 14 | B21: O | C21: 21702 | D21: Evalotta KWS | E21: 30.319 | G21: 0.638 | H21: =VLOOKUP(C21,'[22]Medium 2 trials'!$C$9:$H$26,6,FALSE) -> 0.243 | I21: =VLOOKUP(C21,'[22]Low 4 trials'!$C$9:$H$26,6,FALSE) -> 0.223 | J21: Medel
A22: 15 | B22: O | C22: 21745 | D22: Snooze | E22: 70.666 | G22: 0 | J22: Sen
A23: 16 | B23: O | C23: 21717 | D23: Trixx | E23: 146.897 | G23: 1.966 | J23: Sen
A24: 17 | B24: O | C24: 21712 | D24: Smart Renja KWS | E24: 13.164 | G24: 0.589 | H24: =VLOOKUP(C24,'[22]Medium 2 trials'!$C$9:$H$26,6,FALSE) -> 0.283 | I24: =VLOOKUP(C24,'[22]Low 4 trials'!$C$9:$H$26,6,FALSE) -> 0.258 | J24: Medel
A25: 18 | B25: O | C25: 21726 | D25: SV2003 | G25: 3.341 | J25: Sen

Sheet 1st sowing 2019
A1: 1 | B1: 2 | C1: 3 | D1: 4 | E1: 12 | F1: 44 | G1: 46 | H1: 48
E2: 137 | F2: 137 | G2: 137 | H2: 137
A3: Series 118 (trial no 137) | E3: Plant nr | F3: Fröstockar | G3: Fröstockar | H3: Fröstockar
A4: Borgeby 2019 28th of Feb | E4: Plant no | F4: Bolters | G4: Bolters | H4: Bolters
A5: Expl. | E5: 1 | F5: Early | G5: Late | H5: Sum
A6: no trials
A7: Unit | E7: nr/plot | F7: ‰ | G7: ‰ | H7: ‰
E8: 523.7120909 | F8: 31.89381818 | G8: 15.55472727 | H8: 47.44863636
A9: 1 | B9: R | C9: 21402 | D9: Daphna (Gaucho) | E9: 503.333 | F9: 5.746 | G9: 10.072 | H9: 15.818
A10: 3 | B10: R | C10: 21539 | D10: Selma KWS | E10: 575.833 | F10: 3.729 | G10: 4.013 | H10: 7.742
A11: 4 | B11: R | C11: 21403 | D11: Smilla KWS | E11: 554.167 | F11: 13.277 | G11: 19.411 | H11: 32.687
A12: 5 | B12: R | C12: 21533 | D12: Farina KWS | E12: 652.5 | F12: 3.232 | G12: 6.791 | H12: 10.023
A13: 6 | B13: R | C13: 21201 | D13: Cartoon | E13: 542.5 | F13: 24.62 | G13: 9.145 | H13: 33.765
A14: 7 | B14: R | C14: 21434 | D14: Klimt | E14: 565 | F14: 34.74 | G14: 22.696 | H14: 57.437
A15: 8 | B15: R | C15: 21606 | D15: Fortnox (Gaucho) | E15: 352.5 | F15: 127.974 | G15: 45.946 | H15: 173.92
A16: 9 | B16: R | C16: 21323 | D16: Cantona KWS | E16: 537.5 | F16: 10.428 | G16: 1.865 | H16: 12.293
A17: 10 | B17: R | C17: 21508 | D17: Whisky | E17: 641.667 | F17: 25.138 | G17: 24.21 | H17: 49.348
A18: 11 | B18: R | C18: 21644 | D18: Lunella KWS | E18: 255 | F18: 91.443 | G18: 25.846 | H18: 117.29
A19: 12 | B19: R | C19: 21643 | D19: Smart Johanna KWS | E19: 580.833 | F19: 10.505 | G19: 1.107 | H19: 11.612
A20: 13 | B20: O | C20: 21701 | D20: Fenja KWS | E20: 551.667 | F20: 13.451 | G20: 4.712 | H20: 18.163
A21: 14 | B21: O | C21: 21702 | D21: Evalotta KWS | E21: 568.333 | F21: 21.124 | G21: 9.195 | H21: 30.319
A22: 15 | B22: O | C22: 21745 | D22: Snooze | E22: 569.167 | F22: 50.103 | G22: 20.563 | H22: 70.666
A23: 16 | B23: O | C23: 21717 | D23: Trixx | E23: 485.833 | F23: 110.887 | G23: 36.009 | H23: 146.897
A24: 17 | B24: O | C24: 21712 | D24: Smart Renja KWS | E24: 516.667 | F24: 6.649 | G24: 6.515 | H24: 13.164
A25: 19 | C25: 21628 | D25: Moala | E25: 661.667 | F25: 0 | G25: 0 | H25: 0
A26: 20 | C26: 21727 | D26: Bauer | E26: 590.833 | F26: 28.432 | G26: 15.31 | H26: 43.742
A27: 21 | C27: 21728 | D27: Ingvar | E27: 578.333 | F27: 24.842 | G27: 20.143 | H27: 44.985
A28: 22 | C28: 21703 | D28: Klarissa KWS | E28: 599.167 | F28: 2.113 | G28: 3.703 | H28: 5.816
A29: 23 | C29: 21708 | D29: Katjana KWS | E29: 560.833 | F29: 4.18 | G29: 0.553 | H29: 4.734
A30: 24 | C30: 21713 | D30: Smart Breanna KWS | E30: 446.667 | F30: 9.318 | G30: 3.72 | H30: 13.038
A31: LSD | E31: 81.92 | F31: 28.757 | G31: 10.688 | H31: 35.387
A32: CV | E32: 9.608 | F32: 64.48 | G32: 51.127 | H32: 54.023
A33: P_value | E33: <0,0001 | F33: <0,0001 | G33: <0,0001 | H33: <0,0001

Sheet 2nd sowing 2019
A1: 1 | B1: 2 | C1: 3 | D1: 4 | E1: 12 | F1: 44 | G1: 46 | H1: 48
E2: 138 | F2: 138 | G2: 138 | H2: 138
A3: Series 118 (trial no 138) | E3: Plant nr | F3: Fröstockar | G3: Fröstockar | H3: Fröstockar
A4: Borgeby 2019 11th of March | E4: Plant no | F4: Bolters | G4: Bolters | H4: Bolters
A5: Expl. | E5: 1 | F5: Early | G5: Late | H5: Sum
A6: no trials
A7: Unit | E7: nr/plot | F7: ‰ | G7: ‰ | H7: ‰
E8: 995.1990833 | F8: 0.78375 | G8: 1.372 | H8: 2.155833333
A9: 1 | B9: R | C9: 21402 | D9: Daphna (Gaucho) | E9: 941.889 | F9: 0.565 | G9: 0.687 | H9: 1.252
A10: 2 | B10: R | C10: 21606 | D10: Fortnox (Force) | E10: 1098.417 | F10: 1.648 | G10: 1.84 | H10: 3.488
A11: 3 | B11: R | C11: 21539 | D11: Selma KWS | E11: 1129.722 | F11: 0.203 | G11: 0.206 | H11: 0.409
A12: 4 | B12: R | C12: 21403 | D12: Smilla KWS | E12: 773.111 | F12: 0.741 | G12: 4.377 | H12: 5.117
A13: 5 | B13: R | C13: 21533 | D13: Farina KWS | E13: 748.611 | F13: 1.481 | G13: 0.987 | H13: 2.469
A14: 6 | B14: R | C14: 21201 | D14: Cartoon | E14: 1489.056 | F14: 0.336 | G14: 0 | H14: 0.336
A15: 7 | B15: R | C15: 21434 | D15: Klimt | E15: 1303.944 | F15: 0.196 | G15: 0.591 | H15: 0.787
A16: 8 | B16: R | C16: 21606 | D16: Fortnox (Gaucho) | E16: 892.889 | F16: 1.992 | G16: 1.54 | H16: 3.532
A17: 9 | B17: R | C17: 21323 | D17: Cantona KWS | E17: 941.889 | F17: 0.639 | G17: 0.407 | H17: 1.046
A18: 10 | B18: R | C18: 21508 | D18: Whisky | E18: 963.667 | F18: 1.002 | G18: 1.002 | H18: 2.005
A19: 11 | B19: R | C19: 21644 | D19: Lunella KWS | E19: 1033.083 | F19: 0.41 | G19: 0 | H19: 0.41
A20: 12 | B20: R | C20: 21643 | D20: Smart Johanna KWS | E20: 626.111 | F20: 0.192 | G20: 4.827 | H20: 5.019
A21: 13 | B21: O | C21: 21701 | D21: Fenja KWS | E21: 779.917 | F21: 0 | G21: 0.194 | H21: 0.194
A22: 14 | B22: O | C22: 21702 | D22: Evalotta KWS | E22: 1238.611 | F22: 0 | G22: 0.638 | H22: 0.638
A23: 15 | B23: O | C23: 21745 | D23: Snooze | E23: 879.278 | F23: 0 | G23: 0 | H23: 0
A24: 16 | B24: O | C24: 21717 | D24: Trixx | E24: 967.75 | F24: 1.264 | G24: 0.702 | H24: 1.966
A25: 17 | B25: O | C25: 21712 | D25: Smart Renja KWS | E25: 914.667 | F25: 0 | G25: 0.589 | H25: 0.589
A26: 18 | B26: O | C26: 21726 | D26: SV2003 | E26: 978.639 | F26: 0.612 | G26: 2.729 | H26: 3.341
A27: 19 | C27: 21628 | D27: Moala | E27: 973.194 | F27: 0 | G27: 0 | H27: 0
A28: 20 | C28: 21727 | D28: Bauer | E28: 1050.778 | F28: 0 | G28: 0.456 | H28: 0.456
A29: 21 | C29: 21728 | D29: Ingvar | E29: 997.694 | F29: 1.093 | G29: 0.602 | H29: 1.696
A30: 22 | C30: 21703 | D30: Klarissa KWS | E30: 1050.778 | F30: 0 | G30: 0 | H30: 0
A31: 23 | C31: 21708 | D31: Katjana KWS | E31: 1132.444 | F31: 0.168 | G31: 1.701 | H31: 1.868
A32: 24 | C32: 21713 | D32: Smart Breanna KWS | E32: 843.889 | F32: 0.688 | G32: 0 | H32: 0.688
A33: 25 | C33: 21814 | D33: 7K783 | E33: 528.111 | F33: 0 | G33: 0 | H33: 0
A34: 26 | C34: 20901 | D34: 8K804 | E34: 1142.584 | F34: 0.293 | G34: 0.462 | H34: 0.858
A35: 27 | C35: 20902 | D35: 8K814 | E35: 1043.972 | F35: 0.196 | G35: 0.392 | H35: 0.589
A36: 28 | C36: 21803 | D36: 8K815 | E36: 1097.056 | F36: 0 | G36: 0.209 | H36: 0.209
A37: 29 | C37: 21802 | D37: 8K819 | E37: 1068.472 | F37: 1.126 | G37: 0.825 | H37: 1.951
A38: 30 | C38: 20903 | D38: 8K825 | E38: 785.361 | F38: 0 | G38: 0 | H38: 0
A39: 31 | C39: 21805 | D39: 8K832 | E39: 958.222 | F39: 0 | G39: 0 | H39: 0
A40: 32 | C40: 21808 | D40: 8K837 | E40: 564.861 | F40: 2.767 | G40: 8.436 | H40: 11.203
A41: 33 | C41: 21815 | D41: 8K848 | E41: 4815.611 | F41: 0 | G41: 23.244 | H41: 23.244
A42: 34 | C42: 20904 | D42: 9K913 | E42: 1195.056 | F42: 0 | G42: 0 | H42: 0
A43: 35 | C43: 20905 | D43: 9K914 | E43: 1297.139 | F43: 0.565 | G43: 0 | H43: 0.565
A44: 36 | C44: 20906 | D44: 9K915 | E44: 1184.167 | F44: 0 | G44: 0 | H44: 0
A45: 37 | C45: 20907 | D45: 9K926 | E45: 723.361 | F45: 0 | G45: 1.14 | H45: 1.243
A46: 38 | C46: 20908 | D46: 9K928 | E46: 990.889 | F46: 0.238 | G46: 0 | H46: 0.238
A47: 39 | C47: 20909 | D47: 9K933 | E47: 997.694 | F47: 0.184 | G47: 0.85 | H47: 1.035
A48: 40 | C48: 20910 | D48: 9K938 | E48: 996.333 | F48: 0 | G48: 0 | H48: 0
A49: 41 | C49: 20911 | D49: 9K941 | E49: 879.278 | F49: 0 | G49: 0 | H49: 0
A50: 42 | C50: 20912 | D50: 9K943 | E50: 1180.083 | F50: 0.423 | G50: 0 | H50: 0.423
A51: 43 | C51: 20913 | D51: 9K944 | E51: 838.444 | F51: 1.611 | G51: 0 | H51: 1.611
A52: 44 | C52: 20914 | D52: 9K951 | E52: 808.5 | F52: 0 | G52: 0 | H52: 0
A53: 45 | C53: 20915 | D53: 9K952 | E53: 1227.722 | F53: 0 | G53: 0 | H53: 0
A54: 46 | C54: 20916 | D54: 9K973 | E54: 905.139 | F54: 0.895 | G54: 1.093 | H54: 1.988
A55: 47 | C55: 21817 | D55: MH2006 | E55: 894.25 | F55: 1.092 | G55: 0.8 | H55: 1.892
A56: 48 | C56: 21819 | D56: MH2018 | E56: 910.583 | F56: 0.569 | G56: 0 | H56: 0.569
A57: 49 | C57: 21823 | D57: MH4013 | E57: 730.917 | F57: 3.256 | G57: 21.197 | H57: 24.453
A58: 50 | C58: 20932 | D58: ST12839 | E58: 722.75 | F58: 3.571 | G58: 8.777 | H58: 12.348
A59: 51 | C59: 21833 | D59: ST12854 | E59: 1380.167 | F59: 0 | G59: 0 | H59: 0
A60: 52 | C60: 21837 | D60: ST12860 | E60: 741.806 | F60: 0 | G60: 0.212 | H60: 0.212
A61: 53 | C61: 20933 | D61: ST12948 | E61: 850.694 | F61: 11.373 | G61: 11.16 | H61: 22.533
A62: 54 | C62: 20934 | D62: ST12951 | E62: 944.611 | F62: 0.204 | G62: 0.227 | H62: 0.431
A63: 55 | C63: 20935 | D63: ST12952 | E63: 888.806 | F63: 0.758 | G63: 1.278 | H63: 2.036
A64: 56 | C64: 20936 | D64: ST12981 | E64: 1038.528 | F64: 1.545 | G64: 0.507 | H64: 2.053
A65: 57 | C65: 21841 | D65: ST15827 | E65: 1156.944 | F65: 0.594 | G65: 0 | H65: 0.594
A66: 58 | C66: 21842 | D66: ST15836 | E66: 1018.111 | F66: 0.557 | G66: 2.075 | H66: 2.633
A67: 59 | C67: 20937 | D67: ST15955 | E67: 929.639 | F67: 3.111 | G67: 3.46 | H67: 6.571
A68: 60 | C68: 21828 | D68: SV2115 | E68: 1091.611 | F68: 1.228 | G68: 1.08 | H68: 2.309
A69: LSD | E69: ns | F69: 1.734 | G69: ns | H69: 10.308
A70: CV | E70: 112.784 | F70: 156.575 | G70: 427.909 | H70: 286.712
A71: P_value | E71: 0.8161848874 | F71: <0,0001 | G71: 0.1629735745 | H71: <0.001

Sheet 3rd sowing 2019
A1: 1 | B1: 2 | C1: 3 | D1: 4 | E1: 12 | F1: 44 | G1: 46 | H1: 48 | ALL1: 1
E2: 139 | F2: 139 | G2: 139 | H2: 139
A3: Series 118 (trial no 139) | E3: Plant nr | F3: Fröstockar | G3: Fröstockar | H3: Fröstockar
A4: Borgeby 2019 21st of March | E4: Plant no | F4: Bolters | G4: Bolters | H4: Bolters
A5: Expl. | E5: 1 | F5: Early | G5: Late | H5: Sum
A6: no trials
A7: Unit | E7: nr/plot | F7: ‰ | G7: ‰ | H7: ‰
C8: Variety-code | D8: Name | E8: 234.6877273 | F8: 0.2152900214 | G8: 0.6964475252 | H8: 0.9117375466
A9: 1 | B9: R | C9: 21402 | D9: Daphna (Gaucho)
A10: 3 | B10: R | C10: 21539 | D10: Selma KWS | E10: 249.905 | F10: 0 | G10: 0 | H10: 0
A11: 4 | B11: R | C11: 21403 | D11: Smilla KWS | E11: 242.603 | F11: 0 | G11: 3.875968992 | H11: 3.875968992
A12: 5 | B12: R | C12: 21533 | D12: Farina KWS | E12: 169.802 | F12: 0 | G12: 2.702702703 | H12: 2.702702703
A13: 6 | B13: R | C13: 21201 | D13: Cartoon | E13: 183 | F13: 0 | G13: 0 | H13: 0
A14: 7 | B14: R | C14: 21434 | D14: Klimt | E14: 273.635 | F14: 0 | G14: 0 | H14: 0
A15: 8 | B15: R | C15: 21606 | D15: Fortnox (Gaucho) | E15: 355.83 | F15: 0 | G15: 0 | H15: 0
A16: 9 | B16: R | C16: 21323 | D16: Cantona KWS | E16: 362.238 | F16: 0 | G16: 0 | H16: 0
A17: 10 | B17: R | C17: 21508 | D17: Whisky | E17: 223 | F17: 0 | G17: 0 | H17: 0
A18: 11 | B18: R | C18: 21644 | D18: Lunella KWS | E18: 276.802 | F18: 1.612903226 | G18: 0 | H18: 1.612903226
A19: 12 | B19: R | C19: 21643 | D19: Smart Johanna KWS | E19: 244.75 | F19: 0.7552870091 | G19: 1.082251082 | H19: 1.837538091
A20: 13 | B20: O | C20: 21701 | D20: Fenja KWS | E20: 193.802 | F20: 0 | G20: 0 | H20: 0
A21: 14 | B21: O | C21: 21702 | D21: Evalotta KWS | E21: 230.25 | F21: 0 | G21: 0 | H21: 0
A22: 15 | B22: O | C22: 21745 | D22: Snooze | E22: 284.75 | F22: 0 | G22: 0 | H22: 0
A23: 16 | B23: O | C23: 21717 | D23: Trixx | E23: 281.905 | F23: 0 | G23: 0 | H23: 0
A24: 17 | B24: O | C24: 21712 | D24: Smart Renja KWS | E24: 344.75 | F24: 0 | G24: 0 | H24: 0
A25: 18 | B25: O | C25: 21726 | D25: SV2003 | E25: 359.302 | F25: 0 | G25: 1.587301587 | H25: 1.587301587
A26: 19 | C26: 21628 | D26: Moala | E26: 205.397 | F26: 0 | G26: 0 | H26: 0
A27: 20 | C27: 21727 | D27: Bauer | E27: 348.63 | F27: 0 | G27: 0 | H27: 0
A28: 21 | C28: 21728 | D28: Ingvar | E28: 262.238 | F28: 0 | G28: 0 | H28: 0
A29: 22 | C29: 21703 | D29: Klarissa KWS | E29: 290.19 | F29: 0 | G29: 0 | H29: 0
A30: 23 | C30: 21708 | D30: Katjana KWS | E30: 200.802 | F30: 0 | G30: 0 | H30: 0
A31: 24 | C31: 21713 | D31: Smart Breanna KWS | E31: 233.572 | F31: 0 | G31: 0 | H31: 0
A32: 25 | C32: 21814 | D32: 7K783 | E32: 197 | F32: 0 | G32: 0 | H32: 0
A33: 26 | C33: 20901 | D33: 8K804 | E33: 287 | F33: 0 | G33: 0 | H33: 0
A34: 27 | C34: 20902 | D34: 8K814 | E34: 263 | F34: 0 | G34: 0 | H34: 0
A35: 28 | C35: 21803 | D35: 8K815 | E35: 329.802 | F35: 0 | G35: 0 | H35: 0
A36: 29 | C36: 21802 | D36: 8K819 | E36: 166.603 | F36: 0 | G36: 0 | H36: 0
A37: 30 | C37: 20903 | D37: 8K825 | E37: 446.19 | F37: 0 | G37: 0 | H37: 0
A38: 31 | C38: 21805 | D38: 8K832 | E38: 476.802 | F38: 0 | G38: 0 | H38: 0
A39: 32 | C39: 21808 | D39: 8K837 | E39: 285.69 | F39: 0 | G39: 1.207729469 | H39: 1.207729469
A40: 33 | C40: 21815 | D40: 8K848 | E40: 166.19 | F40: 0 | G40: 0 | H40: 0
A41: 34 | C41: 20904 | D41: 9K913 | E41: 362.297 | F41: 0 | G41: 0 | H41: 0
A42: 35 | C42: 20905 | D42: 9K914 | E42: 323.63 | F42: 0 | G42: 0.7843137255 | H42: 0.7843137255
A43: 36 | C43: 20906 | D43: 9K915 | E43: 415.603 | F43: 0 | G43: 0 | H43: 0
A44: 37 | C44: 20907 | D44: 9K926 | E44: 116.897 | F44: 0 | G44: 0 | H44: 0
A45: 38 | C45: 20908 | D45: 9K928 | E45: 201 | F45: 0 | G45: 0 | H45: 0
A46: 39 | C46: 20909 | D46: 9K933 | E46: 314.397 | F46: 0 | G46: 0 | H46: 0
A47: 40 | C47: 20910 | D47: 9K938 | E47: 251.397 | F47: 0 | G47: 2.024291498 | H47: 2.024291498
A48: 41 | C48: 20911 | D48: 9K941 | E48: 332.397 | F48: 0 | G48: 0 | H48: 0
A49: 42 | C49: 20912 | D49: 9K943 | E49: 535 | F49: 0 | G49: 0 | H49: 0
A50: 43 | C50: 20913 | D50: 9K944 | E50: 190.302 | F50: 0 | G50: 0 | H50: 0
A51: 44 | C51: 20914 | D51: 9K951 | E51: 192.103 | F51: 0 | G51: 2.732240437 | H51: 2.732240437
A52: 45 | C52: 20915 | D52: 9K952 | E52: 220 | F52: 0 | G52: 0 | H52: 0
A53: 46 | C53: 20916 | D53: 9K973 | E53: 482.572 | F53: 0 | G53: 0 | H53: 0
A54: 47 | C54: 21817 | D54: MH2006 | E54: 279.905 | F54: 0 | G54: 0 | H54: 0
A55: 48 | C55: 21819 | D55: MH2018 | E55: 215.198 | F55: 0 | G55: 0 | H55: 0
A56: 49 | C56: 21823 | D56: MH4013 | E56: 506.163 | F56: 0 | G56: 0.710732054 | H56: 0.710732054
A57: 51 | C57: 21833 | D57: ST12854
A58: 52 | C58: 21837 | D58: ST12860 | E58: 141.81 | F58: 0 | G58: 0 | H58: 0
A59: 57 | C59: 21841 | D59: ST15827 | E59: 407.75 | F59: 0.6578947368 | G59: 1.315789474 | H59: 1.973684211
A60: 58 | C60: 21842 | D60: ST15836 | E60: 390 | F60: 0 | G60: 0 | H60: 0
A61: 60 | C61: 21828 | D61: SV2115 | E61: 172.572 | F61: 0 | G61: 0 | H61: 0
A62: 61 | C62: 20924 | D62: SV2234 | E62: 331.963 | F62: 0 | G62: 0 | H62: 0
A63: 62 | C63: 20925 | D63: SV2251 | E63: 252.5 | F63: 0 | G63: 0 | H63: 0
A64: 63 | C64: 20926 | D64: SV2253 | E64: 388 | F64: 0 | G64: 2.228193137 | H64: 2.228193137
A65: 64 | C65: 20927 | D65: SV2255 | E65: 261.75 | F65: 0 | G65: 0 | H65: 0
A66: 65 | C66: 20928 | D66: SV2257 | E66: 187.69 | F66: 0 | G66: 0 | H66: 0
A67: 66 | C67: 20929 | D67: SV2259 | E67: 519.69 | F67: 0 | G67: 0 | H67: 0
A68: 67 | C68: 20930 | D68: SV2261 | E68: 387.75 | F68: 0 | G68: 5.498633535 | H68: 5.498633535
A69: 68 | C69: 20931 | D69: SV2262 | E69: 327.75 | F69: 0 | G69: 0 | H69: 0
A70: LSD | E70: ns
A71: CV | E71: 45.833 | F71: 436.6216549 | G71: 224.2336624 | H71: 206.418245
A72: P_value | E72: 0.1629104201

Sheet High 3 trials
A1: 1 | B1: 2 | C1: 3 | D1: 4 | E1: 14 | F1: 44 | G1: 46 | H1: 48
E2: All sites | F2: All sites | G2: All sites | H2: All sites
A3: Series 118 (trial no All sites) | E3: Plant nr | F3: Fröstockar | G3: Fröstockar | H3: Fröstockar
E4: Plant no | F4: Bolters | G4: Bolters | H4: Bolters
A5: Expl. | E5: 1 | F5: Early | G5: Late | H5: Sum
A6: no trials
A7: Unit | E7: nr/plot | F7: ‰ | G7: ‰ | H7: ‰
E8: 705.375 | F8: 13.357 | G8: 16.5902 | H8: 29.9534
A9: 1 | B9: R | C9: 21402 | D9: Daphna (Gaucho) | E9: 705.117 | F9: 8.372 | G9: 25.196 | H9: 33.384
A10: 4 | B10: R | C10: 21403 | D10: Smilla KWS | E10: 698.759 | F10: 8.444 | G10: 16.021 | H10: 24.266
A11: 6 | B11: R | C11: 21201 | D11: Cartoon | E11: 704.251 | F11: 18.417 | G11: 14.245 | H11: 32.842
A12: 7 | B12: R | C12: 21434 | D12: Klimt | E12: 691.623 | F12: 24.32 | G12: 19.166 | H12: 43.603
A13: 9 | B13: R | C13: 21323 | D13: Cantona KWS | E13: 727.125 | F13: 7.232 | G13: 8.323 | H13: 15.672
A14: LSD | E14: ns | F14: 11.635 | G14: ns | H14: ns
A15: CV | E15: 16.66 | F15: 101.162 | G15: 95.251 | H15: 76.991
A16: P_value | E16: 0.9585402126 | F16: <0.05 | G16: 0.1961728276 | H16: 0.07580565788

Sheet High 2 trials
A1: 1 | B1: 2 | C1: 3 | D1: 4 | E1: 14 | F1: 44 | G1: 46 | H1: 48
E2: All sites | F2: All sites | G2: All sites | H2: All sites
A3: Series 118 (trial no All sites) | E3: Plant nr | F3: Fröstockar | G3: Fröstockar | H3: Fröstockar
E4: Plant no | F4: Bolters | G4: Bolters | H4: Bolters
A5: Expl. | E5: 1 | F5: Early | G5: Late | H5: Sum
A6: no trials
A7: Unit | E7: nr/plot | F7: ‰ | G7: ‰ | H7: ‰
E8: 699.501625 | F8: 12.653625 | G8: 15.03775 | H8: 27.917875
A9: 1 | B9: R | C9: 21402 | D9: Daphna (Gaucho) | E9: 695.228 | F9: 8.82 | G9: 25.237 | H9: 33.997
A10: 3 | B10: R | C10: 21539 | D10: Selma KWS | E10: 750.518 | F10: 12.901 | G10: 8.78 | H10: 22.162
A11: 4 | B11: R | C11: 21403 | D11: Smilla KWS | E11: 689.732 | F11: 8.707 | G11: 15.943 | H11: 24.615
A12: 5 | B12: R | C12: 21533 | D12: Farina KWS | E12: 768.686 | F12: 5.468 | G12: 14.078 | H12: 19.94
A13: 6 | B13: R | C13: 21201 | D13: Cartoon | E13: 700.859 | F13: 18.462 | G13: 14.098 | H13: 32.809
A14: 7 | B14: R | C14: 21434 | D14: Klimt | E14: 687.094 | F14: 24.435 | G14: 19.053 | H14: 43.683
A15: 9 | B15: R | C15: 21323 | D15: Cantona KWS | E15: 722.596 | F15: 7.347 | G15: 8.209 | H15: 15.751
A16: 10 | B16: R | C16: 21508 | D16: Whisky | E16: 581.3 | F16: 15.089 | G16: 14.904 | H16: 30.386
A17: LSD | E17: ns | F17: ns | G17: ns | H17: ns
A18: CV | E18: 21.24 | F18: 111.68 | G18: 97.526 | H18: 80.264
A19: P_value | E19: 0.2797121202 | F19: 0.05115939037 | G19: 0.1935353666 | H19: 0.08201270686

Sheet Medium 4 trials
A1: 1 | B1: 2 | C1: 3 | D1: 4 | E1: 14 | F1: 44 | G1: 46 | H1: 48
E2: All sites | F2: All sites | G2: All sites | H2: All sites
A3: Series 118 (trial no All sites) | E3: Plant nr | F3: Fröstockar | G3: Fröstockar | H3: Fröstockar
E4: Plant no | F4: Bolters | G4: Bolters | H4: Bolters
A5: Expl. | E5: 1 | F5: Early | G5: Late | H5: Sum
A6: no trials
A7: Unit | E7: nr/plot | F7: ‰ | G7: ‰ | H7: ‰
E8: 1122.099 | F8: 0.95875 | G8: 0.53325 | H8: 1.49625
A9: 1 | B9: R | C9: 21402 | D9: Daphna (Gaucho) | E9: 1136.384 | F9: 2.165 | G9: 0.469 | H9: 2.635
A10: 4 | B10: R | C10: 21403 | D10: Smilla KWS | E10: 1062.659 | F10: 0.305 | G10: 0.909 | H10: 1.22
A11: 6 | B11: R | C11: 21201 | D11: Cartoon | E11: 1188.499 | F11: 1.095 | G11: 0.474 | H11: 1.574
A12: 9 | B12: R | C12: 21323 | D12: Cantona KWS | E12: 1100.854 | F12: 0.27 | G12: 0.281 | H12: 0.556
A13: LSD | E13: ns | F13: 0.956 | G13: ns | H13: ns
A14: CV | E14: 18.138 | F14: 159.645 | G14: 227.393 | H14: 137.234
A15: P_value | E15: 0.386418774 | F15: <0.05 | G15: 0.4717021587 | H15: 0.05114104361

Sheet Medium 3 trials
A1: 1 | B1: 2 | C1: 3 | D1: 4 | E1: 14 | F1: 44 | G1: 46 | H1: 48
E2: All sites | F2: All sites | G2: All sites | H2: All sites
A3: Series 118 (trial no All sites) | E3: Plant nr | F3: Fröstockar | G3: Fröstockar | H3: Fröstockar
E4: Plant no | F4: Bolters | G4: Bolters | H4: Bolters
A5: Expl. | E5: 1 | F5: Early | G5: Late | H5: Sum
A6: no trials
A7: Unit | E7: nr/plot | F7: ‰ | G7: ‰ | H7: ‰
E8: 1039.794 | F8: 0.9286666667 | G8: 0.2667777778 | H8: 1.254333333
A9: 1 | B9: R | C9: 21402 | D9: Daphna (Gaucho) | E9: 1066.705 | F9: 1.742 | G9: 0.289 | H9: 2.131
A10: 3 | B10: R | C10: 21539 | D10: Selma KWS | E10: 1030.897 | F10: -0.115 | G10: 0.076 | H10: 0.007
A11: 4 | B11: R | C11: 21403 | D11: Smilla KWS | E11: 965.401 | F11: 0.204 | G11: 0.718 | H11: 1.004
A12: 5 | B12: R | C12: 21533 | D12: Farina KWS | E12: 1026.822 | F12: -0.053 | G12: 0.372 | H12: 0.393
A13: 6 | B13: R | C13: 21201 | D13: Cartoon | E13: 1153.502 | F13: 0.867 | G13: 0.013 | H13: 0.916
A14: 7 | B14: R | C14: 21434 | D14: Klimt | E14: 1064.647 | F14: 4.186 | G14: 0.385 | H14: 4.616
A15: 9 | B15: R | C15: 21323 | D15: Cantona KWS | E15: 1016.596 | F15: 0.113 | G15: 0.127 | H15: 0.285
A16: 11 | B16: R | C16: 21644 | D16: Lunella KWS | E16: 989.246 | F16: 0.587 | G16: 0.039 | H16: 0.681
A17: 12 | B17: R | C17: 21643 | D17: Smart Johanna KWS | E17: 1044.33 | F17: 0.827 | G17: 0.382 | H17: 1.256
A18: LSD | E18: ns | F18: 1.306 | G18: ns | H18: 1.412
A19: CV | E19: 19.425 | F19: 160.238 | G19: 425.159 | H19: 146.606
A20: P_value | E20: 0.5338344985 | F20: <0,0001 | G20: 0.5087921741 | H20: <0,0001

Sheet Medium 2 trials
A1: 1 | B1: 2 | C1: 3 | D1: 4 | E1: 14 | F1: 44 | G1: 46 | H1: 48
E2: All sites | F2: All sites | G2: All sites | H2: All sites
A3: Series 118 (trial no All sites) | E3: Plant nr | F3: Fröstockar | G3: Fröstockar | H3: Fröstockar
E4: Plant no | F4: Bolters | G4: Bolters | H4: Bolters
A5: Expl. | E5: 1 | F5: Early | G5: Late | H5: Sum
A6: no trials
A7: Unit | E7: nr/plot | F7: ‰ | G7: ‰ | H7: ‰
E8: 1111.5396 | F8: 0.6787 | G8: 0.3113 | H8: 1.0026
A9: 1 | B9: R | C9: 21402 | D9: Daphna (Gaucho) | E9: 1360.353 | F9: 0.369 | G9: 0.256 | H9: 0.654
A10: 3 | B10: R | C10: 21539 | D10: Selma KWS | E10: 1065.541 | F10: 0.068 | G10: 0.065 | H10: 0.136
A11: 4 | B11: R | C11: 21403 | D11: Smilla KWS | E11: 1087.795 | F11: 0.61 | G11: 0.964 | H11: 1.561
A12: 5 | B12: R | C12: 21533 | D12: Farina KWS | E12: 1172.941 | F12: 0.2 | G12: 0.389 | H12: 0.639
A13: 6 | B13: R | C13: 21201 | D13: Cartoon | E13: 1092.417 | F13: 0.386 | G13: -0.011 | H13: 0.386
A14: 7 | B14: R | C14: 21434 | D14: Klimt | E14: 1138.548 | F14: 2.639 | G14: 0.48 | H14: 3.119
A15: 9 | B15: R | C15: 21323 | D15: Cantona KWS | E15: 997.263 | F15: 0.213 | G15: 0.132 | H15: 0.349
A16: 10 | B16: R | C16: 21508 | D16: Whisky | E16: 1097.827 | F16: 0.874 | G16: 0.395 | H16: 1.275
A17: 11 | B17: R | C17: 21644 | D17: Lunella KWS | E17: 1115.994 | F17: 0.706 | G17: -0.018 | H17: 0.706
A18: 12 | B18: R | C18: 21643 | D18: Smart Johanna KWS | E18: 986.717 | F18: 0.722 | G18: 0.461 | H18: 1.201
A19: 13 | B19: O | C19: 21701 | D19: Fenja KWS | E19: 1057.409 | F19: 0.063 | G19: 0.042 | H19: 0.14
A20: 14 | B20: O | C20: 21702 | D20: Evalotta KWS | E20: 1024.726 | F20: 0.047 | G20: 0.185 | H20: 0.243
A21: 17 | B21: O | C21: 21712 | D21: Smart Renja KWS | E21: 911.913 | F21: 0.102 | G21: 0.17 | H21: 0.283
A22: 20 | C22: 21727 | D22: Bauer | E22: 970.476 | F22: 0.481 | G22: 0.446 | H22: 0.952
A23: 21 | C23: 21728 | D23: Ingvar | E23: 1031.115 | F23: 0.796 | G23: 0.197 | H23: 0.997
A24: 22 | C24: 21703 | D24: Klarissa KWS | E24: 1116.651 | F24: 0 | G24: -0.025 | H24: 0
A25: 23 | C25: 21708 | D25: Katjana KWS | E25: 1106.18 | F25: 0.181 | G25: 0.6 | H25: 0.799
A26: 24 | C26: 21713 | D26: Smart Breanna KWS | E26: 932.78 | F26: 0.284 | G26: -0.004 | H26: 0.284
A27: LSD | E27: ns | F27: 0.981 | G27: ns | H27: 1.242
A28: CV | E28: 55.512 | F28: 249.148 | G28: 365.527 | H28: 200.85
A29: P_value | E29: 0.9972883925 | F29: <0.001 | G29: 0.7193419575 | H29: <0.001

Sheet Low 4 trials
A1: 1 | B1: 2 | C1: 3 | D1: 4 | E1: 14 | F1: 44 | G1: 46 | H1: 48
A3: Series 118 (trial no All sites) | E3: Plant nr | F3: Fröstockar | G3: Fröstockar | H3: Fröstockar
E4: Plant no | F4: Bolters | G4: Bolters | H4: Bolters
A5: Expl. | E5: 1 | F5: Early | G5: Late | H5: Sum
A6: no trials
A7: Unit | E7: nr/plot | F7: ‰ | G7: ‰ | H7: ‰
E8: 3780.524 | F8: 0.3089 | G8: 0.1139 | H8: 0.3669
A9: 1 | B9: R | C9: 21402 | D9: Daphna (Gaucho) | E9: 3826.828 | F9: 0.746 | G9: 0.043 | H9: 0.755
A10: 3 | B10: R | C10: 21539 | D10: Selma KWS | E10: 3820.141 | F10: 0.268 | G10: 0.035 | H10: 0.223
A11: 4 | B11: R | C11: 21403 | D11: Smilla KWS | E11: 3769.217 | F11: 0.142 | G11: 0.09 | H11: 0.206
A12: 5 | B12: R | C12: 21533 | D12: Farina KWS | E12: 3954.008 | F12: 0.36 | G12: 0.035 | H12: 0.315
A13: 6 | B13: R | C13: 21201 | D13: Cartoon | E13: 3732.788 | F13: 0.203 | G13: 0.043 | H13: 0.212
A14: 7 | B14: R | C14: 21434 | D14: Klimt | E14: 3857.039 | F14: 0.361 | G14: 0.745 | H14: 1.073
A15: 9 | B15: R | C15: 21323 | D15: Cantona KWS | E15: 3723.861 | F15: 0.135 | G15: 0.043 | H15: 0.145
A16: 10 | B16: R | C16: 21508 | D16: Whisky | E16: 3421.208 | F16: 0.304 | G16: 0.035 | H16: 0.259
A17: 11 | B17: R | C17: 21644 | D17: Lunella KWS | E17: 3929.775 | F17: 0.302 | G17: 0.035 | H17: 0.258
A18: 12 | B18: R | C18: 21643 | D18: Smart Johanna KWS | E18: 3770.375 | F18: 0.268 | G18: 0.035 | H18: 0.223
A19: 13 | B19: O | C19: 21701 | D19: Fenja KWS | E19: 3796.741 | F19: 0.268 | G19: 0.035 | H19: 0.223
A20: 14 | B20: O | C20: 21702 | D20: Evalotta KWS | E20: 3706.675 | F20: 0.268 | G20: 0.035 | H20: 0.223
A21: 17 | B21: O | C21: 21712 | D21: Smart Renja KWS | E21: 3658.241 | F21: 0.303 | G21: 0.035 | H21: 0.258
A22: 20 | C22: 21727 | D22: Bauer | E22: 3677.675 | F22: 0.907 | G22: 0.674 | H22: 1.5
A23: 21 | C23: 21728 | D23: Ingvar | E23: 3831.641 | F23: 0.268 | G23: 0.035 | H23: 0.223
A24: 22 | C24: 21703 | D24: Klarissa KWS | E24: 3848.551 | F24: 0.402 | G24: 0.189 | H24: 0.511
A25: 23 | C25: 21708 | D25: Katjana KWS | E25: 3775.275 | F25: 0.268 | G25: 0.114 | H25: 0.302
A26: 24 | C26: 21713 | D26: Smart Breanna KWS | E26: 3512.141 | F26: 0.268 | G26: 0.035 | H26: 0.223
A27: CV | E27: 16.106 | F27: 482.308 | G27: 531.463 | H27: 441.486

Sheet Low 6 trials
A1: 1 | B1: 2 | C1: 3 | D1: 4 | E1: 14 | F1: 44 | G1: 46 | H1: 48
E2: All sites | F2: All sites | G2: All sites | H2: All sites
A3: Series 118 (trial no All sites) | E3: Plant nr | F3: Fröstockar | G3: Fröstockar | H3: Fröstockar
E4: Plant no | F4: Bolters | G4: Bolters | H4: Bolters
A5: Expl. | E5: 1 | F5: Early | G5: Late | H5: Sum
A6: no trials
A7: Unit | E7: nr/plot | F7: ‰ | G7: ‰ | H7: ‰
E8: 3690.5306 | F8: 0.3624 | G8: 0.1828 | H8: 0.5214
A9: 1 | B9: R | C9: 21402 | D9: Daphna (Gaucho) | E9: 3720.842 | F9: 0.963 | G9: 0.084 | H9: 1.023
A10: 4 | B10: R | C10: 21403 | D10: Smilla KWS | E10: 3671.708 | F10: 0.099 | G10: 0.106 | H10: 0.18
A11: 6 | B11: R | C11: 21201 | D11: Cartoon | E11: 3671.381 | F11: 0.169 | G11: 0.051 | H11: 0.198
A12: 7 | B12: R | C12: 21434 | D12: Klimt | E12: 3715.905 | F12: 0.469 | G12: 0.62 | H12: 1.065
A13: 9 | B13: R | C13: 21323 | D13: Cantona KWS | E13: 3672.817 | F13: 0.112 | G13: 0.053 | H13: 0.141
A14: LSD | E14: ns | F14: 0.515 | G14: 0.31 | H14: 0.61
A15: CV | E15: 9.136 | F15: 263.021 | G15: 325.875 | H15: 209.787
A16: P_value | E16: 0.9742169781 | F16: <0.05 | G16: <0.05 | H16: <0.05

Sheet Field protocol 137
A1: 118, Bolting trial | C1: Joakim Ekelöf (+46) 736 28 67 24
A2: Trial number: 137/19
A3: Trial host: Borgeby, Leif Bengtsson, tel: 0708 16 10 80 (27)
A4: Coordinates:
A5: SP nr. and name | B5: Kommentar | D5: Utförare | E5: Signatur | F5: Utfört datum
A6: 22.2 Personal+traktor+redskap (SE) | B6: Sådd Såtid 1 | D6: HS tractor | E6: ES AM CN | F6: 2019-02-28 | G6: 137005
A7: 22.1 Arbetstimme - försök (SE) | B7: En man extra vid sådd | D7: HS | F7: 2019-02-28 | G7: 137006
A8: 22.1 Arbetstimme - försök (SE) | B8: Planträkning Slutgiltig (1,5m över alla rader i parcelllen) | D8: HS | G8: 137007
A9: 22.1 Arbetstimme - försök (SE) | B9: (1) 10.10 räkning av stocklöpare | D9: HS | G9: 137008
A10: 22.1 Arbetstimme - försök (SE) | B10: (2) 10.10 räkning av stocklöpare | D10: HS | G10: 137009
A12: Radmyllat probeta 730 kg/ha
A13: Parcell storlek: 6 rader x 6 m
A15: Räknad yta för stocklöpare 6 rader x 4,5 m, plantorna räknade på 1,8m

Sheet Field protocol 138
A1: 118, Bolting trial | C1: Joakim Ekelöf (+46) 736 28 67 24
A2: Trial number: 138/19
A3: Trial host: Borgeby, Leif Bengtsson, tel: 073 801 52 25 (27)
A4: Coordinates:
A5: SP nr. and name | B5: Kommentar | D5: Utförare | E5: Signatur | F5: Utfört datum
A6: 22.2 Personal+traktor+redskap (SE) | B6: Sådd Såtid 2 Block 1 och 3 | D6: HS tractor | E6: ES AM CN | F6: 2019-03-11-12 | G6: 137005
A7: 22.2 Personal+traktor+redskap (SE) | B7: Sådd Såtid 2 Block 2 och 4 | D7: HS tractor | E7: ES AM CN | F7: 2019-03-11-12 | G7: 137005
A8: 22.1 Arbetstimme - försök (SE) | B8: En man extra vid sådd | D8: HS | F8: 2019-03-11-12 | G8: 137006
A9: 22.1 Arbetstimme - försök (SE) | B9: Planträkning Slutgiltig (1,5m över alla rader i parcelllen) | D9: HS | G9: 137007
A10: 22.1 Arbetstimme - försök (SE) | B10: (1) 10.10 räkning av stocklöpare | D10: HS | G10: 137008
A11: 22.1 Arbetstimme - försök (SE) | B11: (2) 10.10 räkning av stocklöpare | D11: HS | G11: 137009
A13: Radmyllat probeta 730 kg/ha
A14: Parcell storlek: 6 rader x 12 m
A16: Räknad yta för stocklöpare 6 rader x 9,80 m, plantorna räknade på 1,8m

Sheet Field protocol 139
A1: 118, Bolting trial | C1: Joakim Ekelöf (+46) 736 28 67 24
A2: Trial number: 139/19
A3: Trial host: Borgeby, Leif Bengtsson, tel: 0708 16 10 80 (27)
A4: Coordinates:
A5: SP nr. and name | B5: Kommentar | C5: Cirka datum | D5: Utförare | E5: Signatur | F5: Utfört datum
A6: 22.2 Personal+traktor+redskap (SE) | B6: Sådd Såtid 3 | C6: 2019-03-11 | D6: HS tractor | E6: ES OL PW | F6: 2019-03-21 | G6: 137005
A7: 22.1 Arbetstimme - försök (SE) | B7: En man extra vid sådd | C7: 2019-02-28 | D7: HS | E7: ES | F7: 2019-03-21 | G7: 137006
A8: 22.1 Arbetstimme - försök (SE) | B8: Planträkning Slutgiltig (hela parcellen räknad 6 rader x 9, 8 m) | C8: 2019-04-25 | D8: HS | G8: 137007
A9: 22.1 Arbetstimme - försök (SE) | B9: (1) 10.10 räkning av stocklöpare | C9: 2019-07-01 | D9: HS | E9: JM PL | F9: 2019-07-18 | G9: 137008
A10: 22.1 Arbetstimme - försök (SE) | B10: (2) 10.10 räkning av stocklöpare | C10: 2019-08-20 | D10: HS | G10: 137009
A12: Övergödslat probeta 835 kg/ha Rotorfräst | E12: OL | F12: 2019-03-20
A13: Parcell storlek: 6 rader x 12 m
A14: Sorten Cartoon är sådd sist i block 4 tot 10 parceller | E14: JM | F14: 2019-03-21
A16: Räknad yta för stocklöpare 6 rader x 9,80 m, alla plantor i parcellen är räknade
